Workbook

Sheet Accueil

Sheet Général
D2: Nom du transporteur | G2: Responsable de la facturation | L2: Numéro de dossier
C4: Adresse | G4: Téléphone | L4: # facture
C6: Personne transportée
C7: Nom | D7: Prénom | G7: Préposés au transport
G8: Nom | J8: Prénom
C9: Coroner
C10: Nom | D10: Prénom
C13: Date et heure du départ des installations, et date et heure de l'arrivée aux installations. | G13: Départ | L13: Arrivée
F14: Date | K14: Date
G15: =IFERROR(CONCATENATE('Jours fériés'!E31," / ",'Jours fériés'!E32),"") ->  | L15: =IFERROR(CONCATENATE( 'Jours fériés'!E34," / ",'Jours fériés'!E35),"") -> 
F16: Heure | K16: Heure
C20: Transport | D20: Détails | L20: Total
C22: Tarif de base | G22: Faites un choix: | L22: =IFERROR(VLOOKUP(H22,TAUX!B15:C20,2,FALSE),0) -> 0
C24: Temps d'attente | E24: En heure | G24: En centième | H24: Taux | J24: Total
D25: S / J | E25: =IFERROR('Calculs temps attente'!F31+'Calculs temps attente'!F32,"") ->  | G25: =IFERROR('Calculs temps attente'!G31+'Calculs temps attente'!G32,"") ->  | H25: =TAUX!$C$6 -> 29.25 | J25: =IFERROR(H25*G25,"") -> 
D26: S / N | E26: =IFERROR('Calculs temps attente'!F37,"") ->  | G26: =IFERROR('Calculs temps attente'!G37,"") ->  | H26: =TAUX!$C$7 -> 36.25
D27: FDS / J | E27: =IFERROR('Calculs temps attente'!F33+'Calculs temps attente'!F34,"") ->  | G27: =IFERROR('Calculs temps attente'!G33+'Calculs temps attente'!G34,"") ->  | H27: =TAUX!$C$8 -> 32.5
D28: FDS / N | E28: =IFERROR('Calculs temps attente'!F38,"") ->  | G28: =IFERROR('Calculs temps attente'!G38,"") ->  | H28: =TAUX!$C$9 -> 39.25
D29: F / J | E29: =IFERROR('Calculs temps attente'!F35+'Calculs temps attente'!F36,"") ->  | G29: =IFERROR('Calculs temps attente'!G35+'Calculs temps attente'!G36,"") ->  | H29: =TAUX!$C$10 -> 40.75
D30: F / N | E30: =IFERROR('Calculs temps attente'!F39,"") ->  | G30: =IFERROR('Calculs temps attente'!G39,"") ->  | H30: =TAUX!$C$11 -> 49
E31: =IFERROR(E25+E26+E27+E28+E29+E30,"") ->  | G31: =SUM(G25:G30) -> 0 | J31: =SUM(J25:J30) -> 0 | L31: =J31 -> 0
C33: Temps d'attente | E33: En heure | G33: En centième | H33: Taux | J33: Total
D34: S / J | E34: =IFERROR('Calculs temps attente'!F62+'Calculs temps attente'!F63,"") ->  | G34: =IFERROR('Calculs temps attente'!G62+'Calculs temps attente'!G63,"") ->  | H34: =TAUX!$C$6 -> 29.25 | J34: =IFERROR(H34*G34,"") -> 
D35: S / N | E35: =IFERROR('Calculs temps attente'!F68,"") ->  | G35: =IFERROR('Calculs temps attente'!G68,"") ->  | H35: =TAUX!$C$7 -> 36.25
D36: FDS / J | E36: =IFERROR('Calculs temps attente'!F64+'Calculs temps attente'!F65,"") ->  | G36: =IFERROR('Calculs temps attente'!G64+'Calculs temps attente'!G65,"") ->  | H36: =TAUX!$C$8 -> 32.5
D37: FDS / N | E37: =IFERROR('Calculs temps attente'!F69,"") ->  | G37: =IFERROR('Calculs temps attente'!G69,"") ->  | H37: =TAUX!$C$9 -> 39.25
D38: F / J | E38: =IFERROR('Calculs temps attente'!F66+'Calculs temps attente'!F67,"") ->  | G38: =IFERROR('Calculs temps attente'!G66+'Calculs temps attente'!G67,"") ->  | H38: =TAUX!$C$10 -> 40.75
D39: F / N | E39: =IFERROR('Calculs temps attente'!F70,"") ->  | G39: =IFERROR('Calculs temps attente'!G70,"") ->  | H39: =TAUX!$C$11 -> 49
E40: =IFERROR(E34+E35+E36+E37+E38+E39,"") ->  | G40: =SUM(G34:G39) -> 0 | J40: =SUM(J34:J39) -> 0 | L40: =J40 -> 0
C42: Temps d'attente | E42: En heure | G42: En centième | H42: Taux | J42: Total
D43: S / J | E43: =(IFERROR('Calculs temps attente'!F93+'Calculs temps attente'!F94,"")) ->  | G43: =IFERROR('Calculs temps attente'!G93+'Calculs temps attente'!G94,"") ->  | H43: =TAUX!$C$6 -> 29.25 | J43: =IFERROR(H43*G43,"") -> 
D44: S / N | E44: =IFERROR('Calculs temps attente'!F99,"") ->  | G44: =IFERROR('Calculs temps attente'!G99,"") ->  | H44: =TAUX!$C$7 -> 36.25
D45: FDS / J | E45: =IFERROR('Calculs temps attente'!F95+'Calculs temps attente'!F96,"") ->  | G45: =IFERROR('Calculs temps attente'!G95+'Calculs temps attente'!G96,"") ->  | H45: =TAUX!$C$8 -> 32.5
D46: FDS / N | E46: =IFERROR('Calculs temps attente'!F100,"") ->  | G46: =IFERROR('Calculs temps attente'!G100,"") ->  | H46: =TAUX!$C$9 -> 39.25
D47: F / J | E47: =IFERROR('Calculs temps attente'!F97+'Calculs temps attente'!F98,"") ->  | G47: =IFERROR('Calculs temps attente'!G97+'Calculs temps attente'!G98,"") ->  | H47: =TAUX!$C$10 -> 40.75
D48: F / N | E48: =IFERROR('Calculs temps attente'!F101,"") ->  | G48: =IFERROR('Calculs temps attente'!G101,"") ->  | H48: =TAUX!$C$11 -> 49
E49: =IFERROR(E43+E44+E45+E46+E47+E48,"") ->  | G49: =SUM(G43:G48) -> 0 | J49: =SUM(J43:J48) -> 0 | L49: =J49 -> 0
J52: Total Transport | L52: =SUM(L22:L51) -> 0
C55: Assistance à l'examinateur | D55: Détails | L55: Total
E57: En heure | G57: En centième | H57: Taux | J57: Total
D58: S / J | E58: =IFERROR('Calculs temps attente'!B124+'Calculs temps attente'!B125,"") ->  | G58: =IFERROR('Calculs temps attente'!E124+'Calculs temps attente'!E125,"") ->  | H58: =TAUX!$C6 -> 29.25 | J58: =IFERROR(H58*G58,"") -> 
D59: S / N | E59: =IFERROR('Calculs temps attente'!C130,"") ->  | G59: =IFERROR('Calculs temps attente'!E130,"") ->  | H59: =TAUX!$C7 -> 36.25
D60: FDS / J | E60: =IFERROR('Calculs temps attente'!B126+'Calculs temps attente'!B127,"") ->  | G60: =IFERROR('Calculs temps attente'!E126+'Calculs temps attente'!E127,"") ->  | H60: =TAUX!$C8 -> 32.5
D61: FDS / N | E61: =IFERROR('Calculs temps attente'!C131,"") ->  | G61: =IFERROR('Calculs temps attente'!E131,"") ->  | H61: =TAUX!$C9 -> 39.25
D62: F / J | E62: =IFERROR('Calculs temps attente'!B128+'Calculs temps attente'!B129,"") ->  | G62: =IFERROR('Calculs temps attente'!E128+'Calculs temps attente'!E129,"") ->  | H62: =TAUX!$C10 -> 40.75
D63: F / N | E63: =IFERROR('Calculs temps attente'!C132,"") ->  | G63: =IFERROR('Calculs temps attente'!E132,"") ->  | H63: =TAUX!$C11 -> 49
E64: =IFERROR(E58+E59+E60+E61+E62+E63,"") ->  | G64: =SUM(G58:G63) -> 0 | J64: =SUM(J58:J63) -> 0
J65: Total Assistance à l'examinateur | L65: =J64 -> 0
C69: Autres frais | D69: Détails | J69: Tarifs | L69: Total
C71: Frais de garde | D71: =Garde!K29 -> 0 | J71: =TAUX!C36 -> 67 | L71: =D71*J71 -> 0
C72: Frais de visite | J72: =TAUX!C37 -> 67 | L72: =D72*J72 -> 0
C73: Nettoyage supplémentaire | J73: =TAUX!C38 -> 45.75 | L73: =D73*J73 -> 0
C74: Corps additionnel | J74: =TAUX!C39 -> 125 | L74: =D74*J74 -> 0
J75: Total Autres frais | L75: =SUM(L71:L74) -> 0
C79: Pour les transports dont la durée est supérieure à 12 heures, le transport comprend-il un coucher ? Faites un choix dans la cellule bleue. | H79: =IF(G79="","non",G79) -> non | J79: =IF(H79="oui",1,2) -> 2 | L79: ='Calculs choix indemnité'!A10 -> 
J80: Dépenses réelles | L80: Indemnité journalière
D81: Repas: | E81: Exclus les taxes et les pourboires. | J81: =IFERROR(IF('Calculs choix indemnité'!A11>='Calculs choix indemnité'!A14, Repas!M42+Repas!M75, Repas!M42),0) -> 0
D83: Hébergement: | E83: Inclus la taxe sur l'hébergement seulement. | J83: =IFERROR( IF(OR('Calculs choix indemnité'!A10<'Calculs choix indemnité'!A12,J79=2), 0, Hébergement!F27),) -> 0
D85: =IFERROR(IF(AND(L79>='Calculs choix indemnité'!A12,J79=2,G79="non"),"ATTENTION:",""),"") ->  | E85: =IFERROR(IF(AND(L79>='Calculs choix indemnité'!A12,J79=2,G79="non"),"Veuillez choisir la ville de votre destination ->>",""),"") -> 
D86: Indemnité journalière: | E86: =IFERROR(IF(L86<>0,"Vous avez choisi de demander l'indemnité journalière.",IF('Calculs choix indemnité'!A10<'Calculs choix indemnité'!A12,"","Vous avez choisi de demander le remboursement des dépenses réelles.")),"") ->  | L86: =IFERROR(IF(AND(Choix!C17=1,Choix!D21="Vous devez choisir Dépenses réelles"), 0, IF(Choix!C17=1,Choix!D21,0)),0) -> 0
D88: Stationnement: | E88: Exclus les taxes. | J88: =Stationnement!D16 -> 0 | L88: =J88 -> 0
D90: Autre 1: | J90: =H90 -> 0 | L90: =H90 -> 0
H91: Total dépenses taxables | J91: =SUM(J81:K90) -> 0 | L91: =IF(L86=0,0,L88+L86+L90) -> 0
L93: Coûts réels
C94: Pourboires | L94: =IFERROR(IF(AND('Calculs choix indemnité'!A10>='Calculs choix indemnité'!A14,Choix!C17=2), Repas!M77+Repas!M44, IF(AND('Calculs choix indemnité'!A10>='Calculs choix indemnité'!A14,Choix!C17=1), Repas!M77, Repas!M44 )),"") -> 
C95: Traversier
C96: Péage
C97: Autre 2
J98: Total dépenses non taxables | L98: =SUM(L94:L97) -> 0
C101: Ces numéros sont obligatoires si vous vous servez de cette feuille comme facture. | J101: Total Transport | L101: =L52 -> 0
J102: Total Autres frais | L102: =L75 -> 0
J103: Total Assistance examinateur | L103: =L65 -> 0
C104: Numéro de TPS du transporteur | J104: Total Dépenses taxables remboursables | L104: =IF(L86>0,Général!L91,Général!J91) -> 0
J105: Sous-total | L105: =SUM(L101:L104) -> 0
C106: Numéro de TVQ du transporteur | H106: 0.05 | J106: TPS | L106: =L105*TAUX!C61 -> 0
H107: 0.09975 | J107: TVQ | L107: =L105*TAUX!C62 -> 0
J108: Sous-total des taxes | L108: =ROUNDUP(L106+L107,3) -> 0
J109: Total des services facturables et des dépenses taxables remboursables | L109: =L101+L102+L103+L104+L106+L107 -> 0
J110: Total Dépenses non taxables remboursables | L110: =L98 -> 0
J111: Total des services facturables et des dépenses remboursables | L111: =L109+L110 -> 0

Sheet Rapport d'activités (hidden)
B2: Maison funéraire | K2: No dossier
B5: Personne transportée | G5: Coroner | K5: Appel
B6: Nom | E6: Prénom | G6: Nom | I6: Prénom | K6: Date | L6: Heure
E11: Préposés au transport
C12: Départ des installations | E12: Nom | G12: Prénom
B13: Date | K13: =IFERROR(CONCATENATE( 'Jours fériés'!E34," / ",'Jours fériés'!E35),"") -> 
B14: Heure
B18: Morgue Québec | C18: Morgue Montréal | E18: Hôpital | G18: Résidence privée | J18: Autre
B20: Détails: | G20: Ville: ____________________________________
E23: Biens | I23: Remise du corps
B24: Heure d'arrivée: | E24: Objets | F24: Boîte | H24: Préposé au coroner
B25: Heure de départ: | E25: Documents | F25: Sac | H25: Agent de sécurité
B26: Temps d'attente: | E26: Enveloppe 3 | F26: Autre | H26: Policier
H27: Coroner
H28: Autre
E30: Signature: ______________________________ | H30: Signature: ______________________________
B34: Morgue Québec | C34: Morgue Montréal | E34: Hôpital | G34: Résidence privée | J34: Autre
B36: Détails: | G36: Ville:
E40: Biens | I40: Remise du corps
B41: Heure d'arrivée: | E41: Objets | F41: Boîte | H41: Préposé au coroner
B42: Heure de départ: | E42: Documents | F42: Sac | H42: Agent de sécurité
B43: Temps d'attente: | E43: Enveloppe 3 | F43: Autre | H43: Policier
H44: Coroner
H45: Autre
E47: Signature: ______________________________ | H47: Signature: ______________________________
C52: Arrivée aux installations
B54: Date | E54: Heure
B58: Garde: Date: __________ Heure: __________ Date: __________ Heure: __________ Date: __________ Heure: __________
B59: Corps additionnel(s): Nom: ___________________________ Prénom: __________________________ No dossier: _______________
B60: Nettoyage supplémentaire: oui _____ non _____ Justification: ________________________________________
B61: Visites: Date: _______ Heure: _______
B62: Nom: ____________________ Prénom: __________________ Fonction: __________________________ Signature: _____________________________________
B63: Visites: Date: _______ Heure: _______
B64: Nom: ____________________ Prénom: __________________ Fonction: __________________________ Signature: _____________________________________

Sheet Informations complémentaires

Sheet Aide-mémoire hébergement repas
J2: Bureau du coroner
A3: AIDE MÉMOIRE DÉPENSES D'HÉBERGEMENT ET DE REPAS REMBOURSABLES
B6: Durée du déplacement * | D6: Coucher | F6: Repas | H6: Preuve | J6: Indemnité journalière
A8: SANS COUCHER
B9: Moins de 12 heures | D9: N/A | F9: Remboursement des dépenses réelles en fonction des montants maximums prévus | H9: Factures originales | J9: N/A
B11: Plus de 12 heures sans coucher | D11: N/A | F11: Remboursement des dépenses réelles en fonction des montants maximums prévus | H11: Preuve de déplacement à destination | I11: OU | J11: 50 % de l'indemnité journalière
A14: AVEC COUCHER
B15: Entre 12 et 18 heures avec coucher | D15: Remboursement des dépenses réelles en fonction des montants maximums prévus | F15: Remboursement des dépenses réelles en fonction des montants maximums prévus | H15: Factures d'hébergement et de repas en fonction des maximums prévus + Dates et heures de départ et d'arrivée | I15: OU | J15: 50 % de l'indemnité journalière
B17: Entre 18 et 24 avec coucher | D17: Remboursement des dépenses réelles en fonction des montants maximums prévus | F17: Remboursement des dépenses réelles en fonction des montants maximums prévus | H17: Factures d'hébergement et de repas en fonction des maximums prévus + Dates et heures de départ et d'arrivée | I17: OU | J17: 100 % de l'indemnité journalière
B19: Plus de 24 heures avec coucher | D19: Remboursement des dépenses réelles en fonction des montants maximums prévus | F19: Remboursement des dépenses réelles en fonction des montants maximums prévus | H19: Factures d'hébergement et de repas en fonction des maximums prévus + Dates et heures de départ et d'arrivée | I19: OU | J19: 100 % de l'indemnité journalière + les repas pris au-delà des 24 heures
B21: * Un déplacement débute au moment du départ des préposés au transport des installations du transporteur jusqu'au moment de leur retour aux installations du transporteur.
J22: 2021-12-15

Sheet Calendrier jours fériés
B5: Calendrier des jours fériés 2024 à 2046
B7: Cette liste représente les jours de fête accordés aux employés du gouvernement du Québec. Ce n'est pas la liste des jours de congé accordés.
B9: Événements | D9: 2024 | E9: 2025 | F9: 2026 | G9: 2027 | H9: 2028 | I9: 2029 | J9: 2030 | K9: 2031 | L9: 2032 | M9: 2033 | N9: 2034 | O9: 2035 | P9: 2036 | Q9: 2037 | R9: 2038 | S9: 2039 | T9: 2040 | U9: 2041 | V9: 2042 | W9: 2043 | X9: 2044 | Y9: 2045 | Z9: 2046
C10: Jour de l'An | D10: lundi 1er janvier 2024 | E10: mercredi 1er janvier 2025 | F10: jeudi 1er janvier 2026 | G10: vendredi 1er janvier 2027 | H10: samedi 1er janvier 2028 | I10: lundi 1er janvier 2029 | J10: mardi 1er janvier 2030 | K10: mercredi 1er janvier 2031 | L10: jeudi 1er janvier 2032 | M10: samedi 1er janvier 2033 | N10: dimanche 1er janvier 2034 | O10: lundi 1er janvier 2035 | P10: mardi 1er janvier 2036 | Q10: jeudi 1er janvier 2037 | R10: vendredi 1er janvier 2038 | S10: samedi 1er janvier 2039 | T10: dimanche 1er janvier 2040 | U10: mardi 1er janvier 2041 | V10: mercredi 1er janvier 2042 | W10: jeudi 1er janvier 2043 | X10: vendredi 1er janvier 2044 | Y10: dimanche 1er janvier 2045 | Z10: lundi 1er janvier 2046
C11: Lendemain du jour de l'An | D11: mardi 2 janvier 2024 | E11: jeudi 2 janvier 2025 | F11: vendredi 2 janvier 2026 | G11: samedi 2 janvier 2027 | H11: dimanche 2 janvier 2028 | I11: mardi 2 janvier 2029 | J11: lundi 2 janvier 2030 | K11: jeudi 2 janvier 2031 | L11: vendredi 2 janvier 2032 | M11: dimanche 2 janvier 2033 | N11: lundi 2 janvier 2034 | O11: mardi 2 janvier 2035 | P11: mercredi 2 janvier 2036 | Q11: vendredi 2 janvier 2037 | R11: samedi 2 janvier 2038 | S11: dimanche 2 janvier 2039 | T11: lundi 2 janvier 2040 | U11: mercredi 2 janvier 2041 | V11: jeudi 2 janvier 2042 | W11: vendredi 2 janvier 2043 | X11: samedi 2 janvier 2044 | Y11: lundi 2 janvier 2045 | Z11: mardi 2 janvier 2046
C12: Vendredi saint | D12: vendredi 29 mars 2024 | E12: vendredi 18 avril 2025 | F12: vendredi 3 avril 2026 | G12: vendredi 26 mars 2027 | H12: vendredi 14 avril 2028 | I12: vendredi 30 mars 2029 | J12: vendredi 19 avril 2030 | K12: vendredi 11 avril 2031 | L12: vendredi 26 mars 2032 | M12: vendredi 15 avril 2033 | N12: vendredi 7 avril 2034 | O12: vendredi 23 mars 2035 | P12: vendredi 11 avril 2036 | Q12: vendredi 3 avril 2037 | R12: vendredi 23 avril 2038 | S12: vendredi 8 avril 2039 | T12: vendredi 30 mars 2040 | U12: vendredi 19 avril 2041 | V12: vendredi 4 avril 2042 | W12: vendredi 27 mars 2043 | X12: vendredi 15 avril 2044 | Y12: vendredi 7 avril 2045 | Z12: vendredi 23 mars 2046
C13: Lundi de Pâques | D13: lundi 1er avril 2024 | E13: lundi 21 avril 2025 | F13: lundi 5 avril 2026 | G13: lundi 29 mars 2027 | H13: lundi 17 avril 2028 | I13: lundi 2 avril 2029 | J13: lundi 22 avril 2030 | K13: lundi 14 avril 2031 | L13: lundi 29 mars 2032 | M13: lundi 18 avril 2033 | N13: lundi 10 avril 2034 | O13: lundi 26 mars 2035 | P13: lundi 14 avril 2036 | Q13: lundi 6 avril 2037 | R13: lundi 26 avril 2038 | S13: lundi 11 avril 2039 | T13: lundi 2 avril 2040 | U13: lundi 22 avril 2041 | V13: lundi 7 avril 2042 | W13: lundi 30 mars 2043 | X13: lundi 18 avril 2044 | Y13: lundi 10 avril 2045 | Z13: lundi 26 mars 2046
C14: Journée internationale des Patriotes | D14: lundi 20 mai 2024 | E14: lundi 19 mai 2025 | F14: lundi 18 mai 2026 | G14: lundi 24 mai 2027 | H14: lundi 22 mai 2028 | I14: lundi 21 mai 2029 | J14: lundi 20 mai 2030 | K14: lundi 19 mai 2031 | L14: lundi 24 mai 2032 | M14: lundi 23 mai 2033 | N14: lundi 22 mai 2034 | O14: lundi 21 mai 2035 | P14: lundi 19 mai 2036 | Q14: lundi 18 mai 2037 | R14: lundi 24 mai 2038 | S14: lundi 23 mai 2039 | T14: lundi 21 mai 2040 | U14: lundi 20 mai 2041 | V14: lundi 19 mai 2042 | W14: lundi 18 mai 2043 | X14: lundi 23 mai 2044 | Y14: lundi 22 mai 2045 | Z14: lundi 21 mai 2046
C15: Fête nationale du Québec | D15: lundi 24 juin 2024 | E15: mardi 24 juin 2025 | F15: mercredi 24 juin 2026 | G15: jeudi 24 juin 2027 | H15: samedi 24 juin 2028 | I15: dimanche 24 juin 2029 | J15: lundi 24 juin 2030 | K15: mardi 24 juin 2031 | L15: jeudi 24 juin 2032 | M15: vendredi 24 juin 2033 | N15: samedi 24 juin 2034 | O15: dimanche 24 juin 2035 | P15: mardi 24 juin 2036 | Q15: mercredi 24 juin 2037 | R15: jeudi 24 juin 2038 | S15: vendredi 24 juin 2039 | T15: dimanche 24 juin 2040 | U15: lundi 24 juin 2041 | V15: mardi 24 juin 2042 | W15: mercredi 24 juin 2043 | X15: vendredi 24 juin 2044 | Y15: samedi 24 juin 2045 | Z15: dimanche 24 juin 2046
C16: Fête du Canada | D16: lundi 1er juillet 2024 | E16: mardi 1er juillet 2025 | F16: mercredi 1er juillet 2026 | G16: jeudi 1er juillet 2027 | H16: samedi 1er juillet 2028 | I16: dimanche 1er juillet 2029 | J16: lundi 1er juillet 2030 | K16: mardi 1er juillet 2031 | L16: jeudi 1er juillet 2032 | M16: vendredi 1er juillet 2033 | N16: samedi 1er juillet 2034 | O16: dimanche 1er juillet 2035 | P16: mardi 1er juillet 2036 | Q16: mercredi 1er juillet 2037 | R16: jeudi 1er juillet 2038 | S16: vendredi 1er juillet 2039 | T16: dimanche 1er juillet 2040 | U16: lundi 1er juillet 2041 | V16: mardi 1er juillet 2042 | W16: mercredi 1er juillet 2043 | X16: vendredi 1er juillet 2044 | Y16: samedi 1er juillet 2045 | Z16: dimanche 1er juillet 2046
C17: Fête du Travail | D17: lundi 2 septembre 2024 | E17: lundi 1er septembre 2025 | F17: lundi 7 septembre 2026 | G17: lundi 6 septembre 2027 | H17: lundi 4 septembre 2028 | I17: lundi 3 septembre 2029 | J17: lundi 2 septembre 2030 | K17: lundi 1er septembre 2031 | L17: lundi 6 septembre 2032 | M17: lundi 5 septembre 2033 | N17: lundi 4 septembre 2034 | O17: lundi 3 septembre 2035 | P17: lundi 1er septembre 2036 | Q17: lundi 7 septembre 2037 | R17: lundi 6 septembre 2038 | S17: lundi 5 septembre 2039 | T17: lundi 3 septembre 2040 | U17: lundi 2 septembre 2041 | V17: lundi 1er septembre 2042 | W17: lundi 7 septembre 2043 | X17: lundi 5 septembre 2044 | Y17: lundi 4 septembre 2045 | Z17: lundi 3 septembre 2046
C18: Fête de l'Action de grâces | D18: lundi 14 octobre 2024 | E18: lundi 13 octobre 2025 | F18: lundi 12 octobre 2026 | G18: lundi 11 octobre 2027 | H18: lundi 9 octobre 2028 | I18: lundi 8 octobre 2029 | J18: lundi 14 octobre 2030 | K18: lundi 13 octobre 2031 | L18: lundi 11 octobre 2032 | M18: lundi 10 octobre 2033 | N18: lundi 9 octobre 2034 | O18: lundi 8 octobre 2035 | P18: lundi 13 octobre 2036 | Q18: lundi 12 octobre 2037 | R18: lundi 11 octobre 2038 | S18: lundi 10 octobre 2039 | T18: lundi 8 octobre 2040 | U18: lundi 14 octobre 2041 | V18: lundi 13 octobre 2042 | W18: lundi 12 octobre 2043 | X18: lundi 10 octobre 2044 | Y18: lundi 9 octobre 2045 | Z18: lundi 8 octobre 2046
C19: Veille de Noël | D19: mardi 24 décembre 2024 | E19: mercredi 24 décembre 2025 | F19: jeudi 24 décembre 2026 | G19: vendredi 24 décembre 2027 | H19: dimanche 24 décembre 2028 | I19: lundi 24 décembre 2029 | J19: mardi 24 décembre 2030 | K19: mercredi 24 décembre 2031 | L19: vendredi 24 décembre 2032 | M19: samedi 24 décembre 2033 | N19: dimanche 24 décembre 2034 | O19: lundi 24 décembre 2035 | P19: mercredi 24 décembre 2036 | Q19: jeudi 24 décembre 2037 | R19: vendredi 24 décembre 2038 | S19: samedi 24 décembre 2039 | T19: lundi 24 décembre 2040 | U19: mardi 24 décembre 2041 | V19: mercredi 24 décembre 2042 | W19: jeudi 24 décembre 2043 | X19: samedi 24 décembre 2044 | Y19: dimanche 24 décembre 2045 | Z19: lundi 24 décembre 2046
C20: Noël | D20: mercredi 25 décembre 2024 | E20: jeudi 25 décembre 2025 | F20: vendredi 25 décembre 2026 | G20: samedi 25 décembre 2027 | H20: lundi 25 décembre 2028 | I20: mardi 25 décembre 2029 | J20: mercredi 25 décembre 2030 | K20: jeudi 25 décembre 2031 | L20: samedi 25 décembre 2032 | M20: dimanche 25 décembre 2033 | N20: lundi 25 décembre 2034 | O20: mardi 25 décembre 2035 | P20: jeudi 25 décembre 2036 | Q20: vendredi 25 décembre 2037 | R20: samedi 25 décembre 2038 | S20: dimanche 25 décembre 2039 | T20: mardi 25 décembre 2040 | U20: mercredi 25 décembre 2041 | V20: jeudi 25 décembre 2042 | W20: vendredi 25 décembre 2043 | X20: dimanche 25 décembre 2044 | Y20: lundi 25 décembre 2045 | Z20: mardi 25 décembre 2046
C21: Lendemain de Noël | D21: jeudi 26 décembre 2024 | E21: vendredi 26 décembre 2025 | F21: samedi 26 décembre 2026 | G21: dimanche 26 décembre 2027 | H21: mardi 26 décembre 2028 | I21: mercredi 26 décembre 2029 | J21: jeudi 26 décembre 2030 | K21: vendredi 26 décembre 2031 | L21: dimanche 26 décembre 2032 | M21: lundi 26 décembre 2033 | N21: mardi 26 décembre 2034 | O21: mercredi 26 décembre 2035 | P21: vendredi 26 décembre 2036 | Q21: samedi 26 décembre 2037 | R21: dimanche 26 décembre 2038 | S21: lundi 26 décembre 2039 | T21: mercredi 26 décembre 2040 | U21: jeudi 26 décembre 2041 | V21: vendredi 26 décembre 2042 | W21: samedi 26 décembre 2043 | X21: lundi 26 décembre 2044 | Y21: mardi 26 décembre 2045 | Z21: mercredi 26 décembre 2046
C22: Veille du Jour de l'An | D22: mardi 31 décembre 2024 | E22: mercredi 31 décembre 2025 | F22: jeudi 31 décembre 2026 | G22: vendredi 31 décembre 2027 | H22: dimanche 31 décembre 2028 | I22: lundi 31 décembre 2029 | J22: mardi 31 décembre 2030 | K22: mercredi 31 décembre 2031 | L22: vendredi 31 décembre 2032 | M22: samedi 31 décembre 2033 | N22: dimanche 31 décembre 2034 | O22: lundi 31 décembre 2035 | P22: mercredi 31 décembre 2036 | Q22: jeudi 31 décembre 2037 | R22: vendredi 31 décembre 2038 | S22: samedi 31 décembre 2039 | T22: lundi 31 décembre 2040 | U22: mardi 31 décembre 2041 | V22: mercredi 31 décembre 2042 | W22: jeudi 31 décembre 2043 | X22: samedi 31 décembre 2044 | Y22: dimanche 31 décembre 2045 | Z22: lundi 31 décembre 2046
B24: Mis à jour par le Bureau du coroner en novembre 2025
B25: Les années bissextiles

Sheet Attente (hidden)
J3: =Général!L3 -> 0
B6: Remplir les cellules jaunes seulement, au besoin.
B7: Utilisez le format aaaa-mm-jj pour les dates.
B8: Exemple: 4 mars 2021: inscrivez 2021-03-04
B9: Utilisez le format 24 heures.
B10: Exemple: 8 h 30 le matin: inscrivez 8:30 Pour minuit et 10 minutes inscrivez 0:10
D14: Début | F14: Fin | H14: Heure de fin modifiée* | J14: Coûts remboursables
B17: Lieu de l'attente 1:
J18: =IF(OR(D21="",F21=""),"Les heures doivent être inscrites","") -> Les heures doivent être inscrites
B19: Date:
B21: Heure: | H21: =IFERROR(IF('Calculs temps attente'!C16='Calculs temps attente'!C15,"",'Calculs temps attente'!C16),) -> 00:00:00 | J21: =IFERROR(IF(OR(D21="",F21=""),"",'Calculs temps attente'!H40),0) -> 
B26: Lieu de l'attente 2:
J27: =IF(OR(D30="",F30=""),"Les heures doivent être inscrites","") -> Les heures doivent être inscrites
B28: Date:
B30: Heure: | H30: =IFERROR(IF('Calculs temps attente'!C47='Calculs temps attente'!C46,"",'Calculs temps attente'!C47),) -> 00:00:00 | J30: =IFERROR(IF(OR(D30="",F30=""),"",'Calculs temps attente'!H71),0) -> 
B35: Lieu de l'attente 3:
J36: =IF(OR(D39="",F39=""),"Les heures doivent être inscrites","") -> Les heures doivent être inscrites
B37: Date:
B39: Heure: | H39: =IFERROR(IF('Calculs temps attente'!C78='Calculs temps attente'!C77,"",'Calculs temps attente'!C78),) -> 00:00:00 | J39: =IFERROR(IF(OR(D39="",F39=""),"",'Calculs temps attente'!H102),0) -> 
H43: Total | J43: =SUM(J21:J42) -> 0
B45: * Si le temps d'attente dépasse une durée de 9 h, l'heure de fin de l'attente est modifiée automatiquement pour tenir compte de ce maximum.
B47: Si aucun total ne s'inscrit à droite ou que la cellule indique ####, modifier les dates et/ou les heures ou le format des dates et/ou des heures.
B50: Commentaires:

Sheet Assistance (hidden)
J3: =Général!L3 -> 0
B6: Remplir les cellules jaunes seulement, au besoin.
B7: Utilisez le format aaaa-mm-jj pour les dates.
B8: Exemple: 4 mars 2021: inscrivez 2021-03-04
B9: Utilisez le format 24 heures.
B10: Exemple: 8 h 30 le matin: inscrivez 8:30 Pour minuit et 10 minutes inscrivez 0:10
B16: Lieu d'assistance:
B18: Nom du préposé:
D20: Début | F20: Fin
B21: Date: | J21: =IF(OR(D23="",F23=""),"Les heures doivent être inscrites","") -> Les heures doivent être inscrites
B23: Heure:
J24: Coûts remboursables
H26: Total | J26: ='Calculs temps attente'!H133 -> 
B29: Si aucun total ne s'inscrit à droite ou que la cellule indique ####, modifier les dates et/ou les heures ou le format des dates et/ou des heures.
B32: Commentaires:

Sheet Calculs temps attente (hidden)
C1: TEMPS D'ATTENTE
C3: Semaine / Jour_soir | D3: =TAUX!$C6 -> 29.25 | G3: NE RIEN MODIFIER DANS CE TABLEAU SOUS PEINE D'ÉLECTROCUTION
C4: Semaine / Nuit | D4: =TAUX!$C7 -> 36.25
A5: 00:00:00 | C5: Fin de semaine / Jour_soir | D5: =TAUX!$C8 -> 32.5
A6: 23:59:00 | C6: Fin de semaine / Nuit | D6: =TAUX!$C9 -> 39.25
A7: =TEXT(A6,"hh:mm") -> 23:59 | C7: Férié / Jour_soir | D7: =TAUX!$C10 -> 40.75
A8: =TEXT(A9,"hh:mm") -> 08:00 | C8: Férié / Nuit | D8: =TAUX!$C11 -> 49
A9: 08:00:00
A10: 1
G11: Attente 1
B13: Début | C13: Fin
A14: Date début / fin | B14: =Attente!D19 -> 00:00:00 | C14: =Attente!F19 -> 00:00:00 | D14: =TEXT(B14,"aaaa-mm-jj ")&TEXT(B15,"hh:mm") -> 1900-01-00 00:00
A15: Heure début / fin | B15: =Attente!D21 -> 00:00:00 | C15: =TEXT(Attente!F21,"hh:mm") -> 00:00 | D15: =TEXT(C14,"aaaa-mm-jj ")&TEXT(C15,"hh:mm") -> 1900-01-00 00:00 | F15: =IF(AND(B16>A8,B16<A7),B16,"") -> 
A16: Heure modifiée | B16: =TEXT(B15,"hh:mm") -> 00:00 | C16: =TEXT(IF(D16<K30,C15,B16+K30),"hh:mm") ->  | D16: =D15-D14 -> 
E20: =IF(E22>=K30,"Dépassement","") -> Dépassement | G20: =IFERROR(IF(AND(B25="oui",D15<K30),$A$10-C25,$A$10-C25),"") ->  | H20: =TEXT(IFERROR(IF(AND(C16>$A$8,B25="oui"), $A$8,E25-G25),""),"hh:mm") ->  | I20: =IFERROR(IF(AND(E25-G20-H20>0,B25="oui"),IF(C16-$A$8>0,C16-$A$8,"")),) -> 00:00:00 | J20: Semaine ou FDS | L20: Férié ou ordinaire
C21: Début | D21: Fin | E21: Durée totale | G21: Durée jour 1 | H21: Durée nuit | I21: Durée jour 2 | J21: Jour 1 | K21: Jour 2 | L21: Jour 1 | M21: Jour 2
A22: Jour + Jour | B22: =IF(C14-B14=0, "oui",IF(AND(C14-B14=1,B16+K30<=A10), "oui", "non")) -> oui | C22: =IF(AND(B16>=$A$8, B16<=$A$7, B22="oui"), B16,"") ->  | D22: =IF(C22<>"",C16,"") ->  | E22: =IF(AND(D22="",C22=""),"",IF(D22="00:00",A10-B16,D22-C22)) ->  | G22: =$E22 ->  | J22: =IFERROR(IF(VLOOKUP(B14,'Jours fériés'!$B$4:$E$5000,2,FALSE)="s","S","FDS"),0) -> 0 | L22: =IF(VLOOKUP(B14,'Jours fériés'!$B$4:$E$5000,3,FALSE)="Oui","F","") -> 
A23: Nuit+ Nuit | B23: =IF(C14-B14=0,"oui","non") -> oui | C23: =IF(AND(B16>=$A$5, C16<=$A$8, B23="oui"), B16,"") ->  | D23: =IF(C23<>"",C16,"") ->  | E23: =TEXT(IF(D23<>"",D23-C23,""),"hh:mm") ->  | H23: =TEXT($E23,"hh:mm") ->  | J23: =IF(VLOOKUP(B14,'Jours fériés'!B4:$E$5000,2,FALSE)="s","S","FDS") ->  | L23: =IF(VLOOKUP(B14,'Jours fériés'!$B$4:$E$5000,3,FALSE)="Oui","F","") -> 
A24: Nuit + Jour | B24: =IF(C14-B14=0,"oui","non") -> oui | C24: =IF(AND(B16>=$A$5, B16<A8, C16>$A$8, B24="oui"), B16,"") ->  | D24: =IF(C24<>"",C16,"") ->  | E24: =TEXT(IF(D24<>"",D24-C24,""),"hh:mm") ->  | H24: =TEXT(IF(D24<>"",$A$8-C24,""),"hh:mm") ->  | I24: =IF(E24<>"",D24-$A$8,"") ->  | J24: =IF(VLOOKUP(B14,'Jours fériés'!$B$4:$E$5000,2,FALSE)="s","S","FDS") ->  | K24: =IF(VLOOKUP(C14,'Jours fériés'!$B$4:$E$5000,2,FALSE)="s","S","FDS") ->  | L24: =IF(VLOOKUP(B14,'Jours fériés'!$B$4:$E$5000,3,FALSE)="Oui","F","") ->  | M24: =IF(VLOOKUP(C14,'Jours fériés'!$B$4:$E$5000,3,FALSE)="Oui","F","") -> 
A25: Jour + Nuit | B25: =IF(AND(C14-B14=1,B16+K30<=A10), "non",IF( C14-B14=1,"oui","non")) -> non | C25: =IF(B25="oui",B15,"") ->  | D25: =IF(C25<>"",C16,"") ->  | E25: =IF(D25<>"",($A$10-C25)+D25,"") ->  | G25: =IF(G20="","",G20) ->  | H25: =TEXT(IFERROR(IF(H20="","",H20),""),"hh:mm") ->  | I25: =IFERROR(IF(I20="","",I20),"") -> 00:00:00 | J25: =IF(VLOOKUP(B14,'Jours fériés'!$B$4:$E$5000,2,FALSE)="s","S","FDS") ->  | K25: =IF(VLOOKUP(C14,'Jours fériés'!$B$4:$E$5000,2,FALSE)="s","S","FDS") ->  | L25: =IF(VLOOKUP(B14,'Jours fériés'!$B$4:$E$5000,3,FALSE)="Oui","F","") ->  | M25: =IF(VLOOKUP(C14,'Jours fériés'!$B$4:$E$5000,3,FALSE)="Oui","F","") -> 
C26: =C25 ->  | D26: =D25 ->  | E26: =SUM(E22:E25) ->  | G26: =TEXT(IF(L33=TRUE,SUM(G22:G25),""),"hh:mm") ->  | H26: =TEXT(IF(H23<>"",H23,IF(H24<>"",H24,IF(H25<>"",H25,""))),"hh:mm") ->  | I26: =TEXT(IF(L35=TRUE,SUM(I22:I25),""),"hh:mm") -> 
B30: JOUR | C30: NUIT | D30: Taux | E30: en centièmes X 1 | F30: Heures X 2 ou X 3 | G30: en centièmes X 2 ou X 3 | H30: TOTAL | K30: 09:00:00 | M30: 09:00:00 | N30: 18:00:00
A31: Semaine jour 1 | B31: =TEXT(IF(AND(G26<>"",J25="S",L25<>"F"),G26,"0"),"hh:mm") ->  | D31: =$D$3 -> 29.25 | E31: =IF(AND(B31<>$A$5,B31<>""),ROUND(B31*24,2),) ->  | F31: =B31*'Calculs choix indemnité'!$F$17 ->  | G31: =ROUND(IF($N$33=2,VLOOKUP(E31,équivalencev2,2,FALSE),IF($N$33=3,VLOOKUP(E31,équivalencev2,3,FALSE),VLOOKUP(E31,équivalencev2,1,FALSE))),2) ->  | H31: =IF($N$33=1,E31*D31,IF($N$33=2,G31*D31,IF($N$33=3,G31*D31,))) -> 0 | M31: 09:00:00 | N31: 18:00:00 | P31: =LEFT(O31,2) -> 
A32: Semaine jour 2 | B32: =TEXT(IF(AND(I26<>"",K25="S",M25<>"F"),I26,"0"),"hh:mm") ->  | D32: =$D$3 -> 29.25 | F32: =B32*'Calculs choix indemnité'!$F$17 ->  | G32: =ROUND(IF($N$33=2,VLOOKUP(E32,équivalencev2,2,FALSE),IF($N$33=3,VLOOKUP(E32,équivalencev2,3,FALSE),VLOOKUP(E32,équivalencev2,1,FALSE))),2) ->  | H32: =IF($N$33=1,E32*D32,IF($N$33=2,G32*D32,IF($N$33=3,G32*D32,))) -> 0 | K32: Tableau Total en orange: | L32: =OR($H31<>"",$H32<>"",$H33<>"",$H34<>"",$H35<>"",$H36<>"",$H37<>"",$H38<>"",$H39<>"") -> TRUE | P32: =RIGHT(O31,2) -> 
A33: Fin de semaine jour 1 | B33: =TEXT(IF(AND(G26<>"",J25="fds",L25<>"F"),G26,"0"),"hh:mm") ->  | D33: =$D$5 -> 32.5 | F33: =B33*'Calculs choix indemnité'!$F$17 ->  | G33: =ROUND(IF($N$33=2,VLOOKUP(E33,équivalencev2,2,FALSE),IF($N$33=3,VLOOKUP(E33,équivalencev2,3,FALSE),VLOOKUP(E33,équivalencev2,1,FALSE))),2) ->  | H33: 0 | K33: Tableau durée jour: | L33: =OR($G22<>"",$G24<>"",$G25<>"") -> FALSE | M33: nbre préposés | N33: ='Calculs choix indemnité'!F17 -> 0
A34: Fin de semaine jour 2 | B34: =TEXT(IF(AND(I26<>"",K25="fds",M25<>"F"),I26,"0"),"hh:mm") ->  | D34: =$D$5 -> 32.5 | F34: =B34*'Calculs choix indemnité'!$F$17 ->  | G34: =ROUND(IF($N$33=2,VLOOKUP(E34,équivalencev2,2,FALSE),IF($N$33=3,VLOOKUP(E34,équivalencev2,3,FALSE),VLOOKUP(E34,équivalencev2,1,FALSE))),2) ->  | H34: 0 | K34: Tableau durée nuit: | L34: =OR($H22<>"",$H23<>"",$H24<>"",$H25<>"") -> 
A35: Férié jour 1 | B35: =TEXT(IF(AND(G26<>"",L25="F"),G26,"0"),"hh:mm") ->  | D35: =$D$7 -> 40.75 | F35: =B35*'Calculs choix indemnité'!$F$17 ->  | G35: =ROUND(IF($N$33=2,VLOOKUP(E35,équivalencev2,2,FALSE),IF($N$33=3,VLOOKUP(E35,équivalencev2,3,FALSE),VLOOKUP(E35,équivalencev2,1,FALSE))),2) ->  | H35: 0 | K35: Tableau durée jour 2: | L35: =OR(I23<>"",I24<>"",I25<>"") -> 
A36: Férie jour 2 | B36: =TEXT(IF(AND(I26<>"",M25="F"),I26,"0"),"hh:mm") ->  | D36: =$D$7 -> 40.75 | F36: =B36*'Calculs choix indemnité'!$F$17 ->  | G36: =ROUND(IF($N$33=2,VLOOKUP(E36,équivalencev2,2,FALSE),IF($N$33=3,VLOOKUP(E36,équivalencev2,3,FALSE),VLOOKUP(E36,équivalencev2,1,FALSE))),2) ->  | H36: 0
A37: Semaine nuit | C37: =TEXT(IF(AND(H26<>"",K25="S",M25<>"F"),H26+0,"0"),"hh:mm") ->  | D37: =$D$4 -> 36.25 | E37: =IF(C37<>"",ROUND(C37*24,2),"0") ->  | F37: =C37*'Calculs choix indemnité'!$F$17 ->  | G37: =ROUND(IF($N$33=2,VLOOKUP(E37,équivalencev2,2,FALSE),IF($N$33=3,VLOOKUP(E37,équivalencev2,3,FALSE),VLOOKUP(E37,équivalencev2,1,FALSE))),2) ->  | H37: 0
A38: Fin de semaine nuit | C38: =TEXT(IF(AND(H26<>"",K25="FDS",M25<>"F"),H26+0,"0"),"hh:mm") ->  | D38: =$D$6 -> 39.25 | E38: =IF(C38<>"",ROUND(C38*24,2),"0") ->  | F38: =C38*'Calculs choix indemnité'!$F$17 ->  | G38: =ROUND(IF($N$33=2,VLOOKUP(E38,équivalencev2,2,FALSE),IF($N$33=3,VLOOKUP(E38,équivalencev2,3,FALSE),VLOOKUP(E38,équivalencev2,1,FALSE))),2) ->  | H38: 0
A39: Férié nuit | C39: =TEXT(IF(AND(H26<>"",M25="F"),H26+0,"0"),"hh:mm") ->  | D39: =$D$8 -> 49 | E39: =IF(C39<>"",ROUND(C39*24,2),"0") ->  | F39: =C39*'Calculs choix indemnité'!$F$17 ->  | G39: =ROUND(IF($N$33=2,VLOOKUP(E39,équivalencev2,2,FALSE),IF($N$33=3,VLOOKUP(E39,équivalencev2,3,FALSE),VLOOKUP(E39,équivalencev2,1,FALSE))),2) ->  | H39: 0 | J39: =E39 -> 
E40: =SUM(E31:E39) ->  | F40: =SUM(F31:F39) ->  | G40: =SUM(G31:G39) ->  | H40: =SUM($H31:$H39) -> 0
E41: =IFERROR(E33,"non") -> non
B44: Début | C44: Fin | G44: Attente 2
A45: Date début / fin | B45: =Attente!D28 -> 00:00:00 | C45: =Attente!F28 -> 00:00:00 | D45: =TEXT(B45,"aaaa-mm-jj ")&TEXT(B46,"hh:mm") -> 1900-01-00 00:00
A46: Heure début / fin | B46: =TEXT(Attente!D30,"hh:mm") -> 00:00 | C46: =(TEXT(Attente!F30,"hh:mm")) -> 00:00 | D46: =TEXT(C45,"aaaa-mm-jj ")&TEXT(C46,"hh:mm") -> 1900-01-00 00:00
A47: Heure modifiée | B47: =TEXT(B46,"hh:mm") -> 00:00 | C47: =TEXT(IF(D47<K61,C46,B47+K61),"hh:mm") ->  | D47: =D46-D45 -> 
E51: =IF(E53>=K61,"Dépassement","") -> Dépassement | G51: =IFERROR(IF(AND(B56="oui",D47<K61),$A$10-C56,$A$10-C56),"") ->  | H51: =TEXT(IFERROR(IF(AND(C47>$A$8,B56="oui"),$A$8,E56-G56),""),"hh:mm") ->  | I51: =IFERROR(IF(AND(E56-G51-H51>0,B56="oui"),IF(C47-$A$8>0,C47-$A$8,"")),) -> 00:00:00 | J51: Semaine ou FDS | L51: Férié ou ordinaire
C52: Début | D52: Fin | E52: Durée totale | G52: Durée jour 1 | H52: Durée nuit | I52: Durée jour 2 | J52: Jour 1 | K52: Jour 2 | L52: Jour 1 | M52: Jour 2
A53: Jour + Jour | B53: =IF(C45-B45=0, "oui",IF(AND(C45-B45=1,B47+K30<=A10), "oui", "non")) -> oui | C53: =IF(AND(B47>=$A$8, B47<=$A$7, B53="oui"), B47,"") ->  | D53: =IF(C53<>"",C47,"") ->  | E53: =IF(AND(D53="",C53=""),"",IF(D53="00:00",A10-B47,D53-C53)) ->  | G53: =$E53 ->  | J53: =IFERROR(IF(VLOOKUP(B45,'Jours fériés'!$B$4:$E$5000,2,FALSE)="s","S","FDS"),0) -> 0 | L53: =IF(VLOOKUP(B45,'Jours fériés'!$B$4:$E$5000,3,FALSE)="Oui","F","") -> 
A54: Nuit+ Nuit | B54: =IF(C45-B45=0,"oui","non") -> oui | C54: =IF(AND(B47>=$A$5, C47<=$A$8, B54="oui"), B47,"") ->  | D54: =IF(C54<>"",C47,"") ->  | E54: =TEXT(IF(D54<>"",D54-C54,""),"hh:mm") ->  | H54: =TEXT($E54,"hh:mm") ->  | J54: =IF(VLOOKUP(B45,'Jours fériés'!B32:$E$5000,2,FALSE)="s","S","FDS") ->  | L54: =IF(VLOOKUP(B45,'Jours fériés'!$B$4:$E$5000,3,FALSE)="Oui","F","") -> 
A55: Nuit + Jour | B55: =IF(C45-B45=0,"oui","non") -> oui | C55: =IF(AND(B47>$A$5, C47>$A$8, B47<A8, B55="oui"), B47,"") ->  | D55: =IF(C55<>"",C47,"") ->  | E55: =TEXT(IF(D55<>"",D55-C55,""),"hh:mm") ->  | H55: =TEXT(IF(D55<>"",$A$8-C55,""),"hh:mm") ->  | I55: =IF(E55<>"",D55-$A$8,"") ->  | J55: =IF(VLOOKUP(B45,'Jours fériés'!$B$4:$E$5000,2,FALSE)="s","S","FDS") ->  | K55: =IF(VLOOKUP(C45,'Jours fériés'!$B$4:$E$5000,2,FALSE)="s","S","FDS") ->  | L55: =IF(VLOOKUP(B45,'Jours fériés'!$B$4:$E$5000,3,FALSE)="Oui","F","") ->  | M55: =IF(VLOOKUP(C45,'Jours fériés'!$B$4:$E$5000,3,FALSE)="Oui","F","") -> 
A56: Jour + Nuit | B56: =IF(AND(C45-B45=1,B47+K30<=A10), "non", IF(C45-B45=1,"oui","non")) -> non | C56: =IF(B56="oui",B46,"") ->  | D56: =IF(C56<>"",C47,"") ->  | E56: =IF(D56<>"",($A$10-C56)+D56,"") ->  | G56: =IF(G51="","",G51) ->  | H56: =TEXT(IFERROR(IF(H51="","",H51),""),"hh:mm") ->  | I56: =IFERROR(IF(I51="","",I51),"") -> 00:00:00 | J56: =IF(VLOOKUP(B45,'Jours fériés'!$B$4:$E$5000,2,FALSE)="s","S","FDS") ->  | K56: =IF(VLOOKUP(C45,'Jours fériés'!$B$4:$E$5000,2,FALSE)="s","S","FDS") ->  | L56: =IF(VLOOKUP(B45,'Jours fériés'!$B$4:$E$5000,3,FALSE)="Oui","F","") ->  | M56: =IF(VLOOKUP(C45,'Jours fériés'!$B$4:$E$5000,3,FALSE)="Oui","F","") -> 
C57: =C56 ->  | D57: =D56 ->  | E57: =SUM(E53:E56) ->  | G57: =TEXT(IF(L64=TRUE,SUM(G53:G56),""),"hh:mm") ->  | H57: =IF(H54<>"",H54,IF(H55<>"",H55,IF(H56<>"",H56,""))) ->  | I57: =TEXT(IF(L66=TRUE,SUM(I53:I56),""),"hh:mm") -> 
B61: JOUR | C61: NUIT | D61: Taux | E61: en centièmes X 1 | F61: Heures X 2 ou X 3 | G61: en centièmes X 2 ou X 3 | H61: TOTAL | K61: 09:00:00 | M61: 09:00:00 | N61: 18:00:00
A62: Semaine jour 1 | B62: =TEXT(IF(AND(G57<>"",J56="S",L56<>"F"),G57,"0"),"hh:mm") ->  | D62: =$D$3 -> 29.25 | E62: =IF(AND(B62<>$A$5,B62<>""),ROUND(B62*24,2),) ->  | F62: =B62*'Calculs choix indemnité'!$F$17 ->  | G62: =ROUND(IF($N$33=2,VLOOKUP(E62,équivalencev2,2,FALSE),IF($N$33=3,VLOOKUP(E62,équivalencev2,3,FALSE),VLOOKUP(E62,équivalencev2,1,FALSE))),2) ->  | H62: =IF($N$33=1,E62*D62,IF($N$33=2,G62*D62,IF($N$33=3,G62*D62,))) -> 0 | M62: 09:00:00 | N62: 18:00:00
A63: Semaine jour 2 | B63: =TEXT(IF(AND(I57<>"",K56="S",M56<>"F"),I57,"0"),"hh:mm") ->  | D63: =$D$3 -> 29.25 | F63: =B63*'Calculs choix indemnité'!$F$17 ->  | G63: =ROUND(IF($N$33=2,VLOOKUP(E63,équivalencev2,2,FALSE),IF($N$33=3,VLOOKUP(E63,équivalencev2,3,FALSE),VLOOKUP(E63,équivalencev2,1,FALSE))),2) ->  | H63: =IF($N$33=1,E63*D63,IF($N$33=2,G63*D63,IF($N$33=3,G63*D63,))) -> 0 | K63: Tableau Total en orange: | L63: =OR($H62<>"",$H63<>"",$H64<>"",$H65<>"",$H66<>"",$H67<>"",$H68<>"",$H69<>"",$H70<>"") -> TRUE
A64: Fin de semaine jour 1 | B64: =TEXT(IF(AND(G57<>"",J56="fds",L56<>"F"),G57,"0"),"hh:mm") ->  | D64: =$D$5 -> 32.5 | F64: =B64*'Calculs choix indemnité'!$F$17 ->  | G64: =ROUND(IF($N$33=2,VLOOKUP(E64,équivalencev2,2,FALSE),IF($N$33=3,VLOOKUP(E64,équivalencev2,3,FALSE),VLOOKUP(E64,équivalencev2,1,FALSE))),2) ->  | H64: 0 | K64: Tableau durée jour: | L64: =OR($G53<>"",$G55<>"",$G56<>"") -> FALSE | M64: nbre préposés | N64: ='Calculs choix indemnité'!F17 -> 0
A65: Fin de semaine jour 2 | B65: =TEXT(IF(AND(I57<>"",K56="fds",M56<>"F"),I57,"0"),"hh:mm") ->  | D65: =$D$5 -> 32.5 | F65: =B65*'Calculs choix indemnité'!$F$17 ->  | G65: =ROUND(IF($N$33=2,VLOOKUP(E65,équivalencev2,2,FALSE),IF($N$33=3,VLOOKUP(E65,équivalencev2,3,FALSE),VLOOKUP(E65,équivalencev2,1,FALSE))),2) ->  | H65: 0 | K65: Tableau durée nuit: | L65: =OR($H53<>"",$H54<>"",$H55<>"",$H56<>"") -> 
A66: Férié jour 1 | B66: =TEXT(IF(AND(G57<>"",L56="F"),G57,"0"),"hh:mm") ->  | D66: =$D$7 -> 40.75 | F66: =B66*'Calculs choix indemnité'!$F$17 ->  | H66: 0 | K66: Tableau durée jour 2: | L66: =OR(I54<>"",I55<>"",I56<>"") -> 
A67: Férie jour 2 | B67: =TEXT(IF(AND(I57<>"",M56="F"),I57,"0"),"hh:mm") ->  | D67: =$D$7 -> 40.75 | F67: =B67*'Calculs choix indemnité'!$F$17 ->  | H67: 0
A68: Semaine nuit | C68: =TEXT(IF(AND(H57<>"",K56="S",M56<>"F"),H57+0,"0"),"hh:mm") ->  | D68: =$D$4 -> 36.25 | E68: =IF(C68<>"",ROUND(C68*24,2),"0") ->  | F68: =C68*'Calculs choix indemnité'!$F$17 ->  | H68: 0
A69: Fin de semaine nuit | C69: =TEXT(IF(AND(H57<>"",K56="FDS",M56<>"F"),H57+0,"0"),"hh:mm") ->  | D69: =$D$6 -> 39.25 | E69: =IF(C69<>"",ROUND(C69*24,2),"0") ->  | F69: =C69*'Calculs choix indemnité'!$F$17 ->  | H69: 0
A70: Férié nuit | C70: =TEXT(IF(AND(H57<>"",M56="F"),H57+0,"0"),"hh:mm") ->  | D70: =$D$8 -> 49 | E70: =IF(C70<>"",ROUND(C70*24,2),"0") ->  | F70: =C70*'Calculs choix indemnité'!$F$17 ->  | H70: 0
D71: Pour 1 préposé | E71: =SUM(E62:E70) ->  | F71: =SUM(F62:F70) ->  | G71: =SUM(G62:G70) ->  | H71: =SUM($H62:$H70) -> 0
B75: Début | C75: Fin | G75: Attente 3
A76: Date début / fin | B76: =Attente!D37 -> 00:00:00 | C76: =Attente!F37 -> 00:00:00 | D76: =TEXT(B76,"aaaa-mm-jj ")&TEXT(B77,"hh:mm") -> 1900-01-00 00:00
A77: Heure début / fin | B77: =TEXT(Attente!D39,"hh:mm") -> 00:00 | C77: =(TEXT(Attente!F39,"hh:mm")) -> 00:00 | D77: =TEXT(C76,"aaaa-mm-jj ")&TEXT(C77,"hh:mm") -> 1900-01-00 00:00
A78: Heure modifiée | B78: =TEXT(B77,"hh:mm") -> 00:00 | C78: =TEXT(IF(D78<K92,C77,B78+K92),"hh:mm") ->  | D78: =D77-D76 -> 
E82: =IF(E84>=K92,"Dépassement","") -> Dépassement | G82: =IFERROR(IF(AND(B87="oui",D78<K92),$A$10-C87,$A$10-C87),"") ->  | H82: =TEXT(IFERROR(IF(AND(C78>$A$8,B87="oui"),$A$8,E87-G87),""),"hh:mm") ->  | I82: =IFERROR(IF(AND(E87-G82-H82>0,B87="oui"),IF(C78-$A$8>0,C78-$A$8,"")),) -> 00:00:00 | J82: Semaine ou FDS | L82: Férié ou ordinaire
C83: Début | D83: Fin | E83: Durée totale | G83: Durée jour 1 | H83: Durée nuit | I83: Durée jour 2 | J83: Jour 1 | K83: Jour 2 | L83: Jour 1 | M83: Jour 2
A84: Jour + Jour | B84: =IF(C76-B76=0, "oui",IF(AND(C76-B76=1,B78+K30<=A10), "oui", "non")) -> oui | C84: =IF(AND(B78>=$A$8,B78<=$A$7,B84="oui"),B78,"") ->  | D84: =IF(C84<>"",C78,"") ->  | E84: =IF(AND(D84="",C84=""),"",IF(D84="00:00",A10-B78,D84-C84)) ->  | G84: =$E84 ->  | J84: =IFERROR(IF(VLOOKUP(B76,'Jours fériés'!$B$4:$E$5000,2,FALSE)="s","S","FDS"),0) -> 0 | L84: =IF(VLOOKUP(B76,'Jours fériés'!$B$4:$E$5000,3,FALSE)="Oui","F","") -> 
A85: Nuit+ Nuit | B85: =IF(C76-B76=0,"oui","non") -> oui | C85: =IF(AND(B78>=$A$5,C78<=$A$8,B85="oui"),B78,"") ->  | D85: =IF(C85<>"",C78,"") ->  | E85: =TEXT(IF(D85<>"",D85-C85,""),"hh:mm") ->  | H85: =TEXT($E85,"hh:mm") ->  | J85: =IF(VLOOKUP(B76,'Jours fériés'!B63:$E$5000,2,FALSE)="s","S","FDS") ->  | L85: =IF(VLOOKUP(B76,'Jours fériés'!$B$4:$E$5000,3,FALSE)="Oui","F","") -> 
A86: Nuit + Jour | B86: =IF(C76-B76=0,"oui","non") -> oui | C86: =IF(AND(B78>$A$5, C78>$A$8, B78<A8, B86="oui"),B78,"") ->  | D86: =IF(C86<>"",C78,"") ->  | E86: =TEXT(IF(D86<>"",D86-C86,""),"hh:mm") ->  | H86: =TEXT(IF(D86<>"",$A$8-C86,""),"hh:mm") ->  | I86: =IF(E86<>"",D86-$A$8,"") ->  | J86: =IF(VLOOKUP(B76,'Jours fériés'!$B$4:$E$5000,2,FALSE)="s","S","FDS") ->  | K86: =IF(VLOOKUP(C76,'Jours fériés'!$B$4:$E$5000,2,FALSE)="s","S","FDS") ->  | L86: =IF(VLOOKUP(B76,'Jours fériés'!$B$4:$E$5000,3,FALSE)="Oui","F","") ->  | M86: =IF(VLOOKUP(C76,'Jours fériés'!$B$4:$E$5000,3,FALSE)="Oui","F","") -> 
A87: Jour + Nuit | B87: =IF(AND(C76-B76=1,B78+K30<=A10), "non",IF(C76-B76=1,"oui","non")) -> non | C87: =IF(B87="oui",B77,"") ->  | D87: =IF(C87<>"",C78,"") ->  | E87: =IF(D87<>"",($A$10-C87)+D87,"") ->  | G87: =IF(G82="","",G82) ->  | H87: =TEXT(IFERROR(IF(H82="","",H82),""),"hh:mm") ->  | I87: =IFERROR(IF(I82="","",I82),"") -> 00:00:00 | J87: =IF(VLOOKUP(B76,'Jours fériés'!$B$4:$E$5000,2,FALSE)="s","S","FDS") ->  | K87: =IF(VLOOKUP(C76,'Jours fériés'!$B$4:$E$5000,2,FALSE)="s","S","FDS") ->  | L87: =IF(VLOOKUP(B76,'Jours fériés'!$B$4:$E$5000,3,FALSE)="Oui","F","") ->  | M87: =IF(VLOOKUP(C76,'Jours fériés'!$B$4:$E$5000,3,FALSE)="Oui","F","") -> 
C88: =C87 ->  | D88: =D87 ->  | E88: =SUM(E84:E87) ->  | G88: =TEXT(IF(L95=TRUE,SUM(G84:G87),""),"hh:mm") ->  | H88: =IF(H85<>"",H85,IF(H86<>"",H86,IF(H87<>"",H87,""))) ->  | I88: =TEXT(IF(L97=TRUE,SUM(I84:I87),""),"hh:mm") -> 
B92: JOUR | C92: NUIT | D92: Taux | E92: en centièmes X 1 | F92: Heures X 2 ou X 3 | G92: en centièmes X 2 ou X 3 | H92: TOTAL | K92: 09:00:00 | M92: 09:00:00 | N92: 18:00:00
A93: Semaine jour 1 | B93: =TEXT(IF(AND(G88<>"",J87="S",L87<>"F"),G88,"0"),"hh:mm") ->  | D93: =$D$3 -> 29.25 | E93: =IF(AND(B93<>$A$5,B93<>""),ROUND(B93*24,2),) ->  | F93: =B93*'Calculs choix indemnité'!$F$17 ->  | G93: =ROUND(IF($N$33=2,VLOOKUP(E93,équivalencev2,2,FALSE),IF($N$33=3,VLOOKUP(E93,équivalencev2,3,FALSE),VLOOKUP(E93,équivalencev2,1,FALSE))),2) ->  | H93: =IF($N$33=1,E93*D93,IF($N$33=2,G93*D93,IF($N$33=3,G93*D93,))) -> 0 | M93: 09:00:00 | N93: 18:00:00
A94: Semaine jour 2 | B94: =TEXT(IF(AND(I88<>"",K87="S",M87<>"F"),I88,"0"),"hh:mm") ->  | D94: =$D$3 -> 29.25 | F94: =B94*'Calculs choix indemnité'!$F$17 ->  | G94: =ROUND(IF($N$33=2,VLOOKUP(E94,équivalencev2,2,FALSE),IF($N$33=3,VLOOKUP(E94,équivalencev2,3,FALSE),VLOOKUP(E94,équivalencev2,1,FALSE))),2) ->  | H94: =IF($N$33=1,E94*D94,IF($N$33=2,G94*D94,IF($N$33=3,G94*D94,))) -> 0 | K94: Tableau Total en orange: | L94: =OR($H93<>"",$H94<>"",$H95<>"",$H96<>"",$H97<>"",$H98<>"",$H99<>"",$H100<>"",$H101<>"") -> TRUE
A95: Fin de semaine jour 1 | B95: =TEXT(IF(AND(G88<>"",J87="fds",L87<>"F"),G88,"0"),"hh:mm") ->  | D95: =$D$5 -> 32.5 | F95: =B95*'Calculs choix indemnité'!$F$17 ->  | G95: =ROUND(IF($N$33=2,VLOOKUP(E95,équivalencev2,2,FALSE),IF($N$33=3,VLOOKUP(E95,équivalencev2,3,FALSE),VLOOKUP(E95,équivalencev2,1,FALSE))),2) ->  | H95: 0 | K95: Tableau durée jour: | L95: =OR($G84<>"",$G86<>"",$G87<>"") -> FALSE | M95: nbre préposés | N95: ='Calculs choix indemnité'!F48 -> 0
A96: Fin de semaine jour 2 | B96: =TEXT(IF(AND(I88<>"",K87="fds",M87<>"F"),I88,"0"),"hh:mm") ->  | D96: =$D$5 -> 32.5 | F96: =B96*'Calculs choix indemnité'!$F$17 ->  | G96: =ROUND(IF($N$33=2,VLOOKUP(E96,équivalencev2,2,FALSE),IF($N$33=3,VLOOKUP(E96,équivalencev2,3,FALSE),VLOOKUP(E96,équivalencev2,1,FALSE))),2) ->  | H96: 0 | K96: Tableau durée nuit: | L96: =OR($H84<>"",$H85<>"",$H86<>"",$H87<>"") -> 
A97: Férié jour 1 | B97: =TEXT(IF(AND(G88<>"",L87="F"),G88,"0"),"hh:mm") ->  | D97: =$D$7 -> 40.75 | F97: =B97*'Calculs choix indemnité'!$F$17 ->  | H97: 0 | K97: Tableau durée jour 2: | L97: =OR(I85<>"",I86<>"",I87<>"") -> 
A98: Férie jour 2 | B98: =TEXT(IF(AND(I88<>"",M87="F"),I88,"0"),"hh:mm") ->  | D98: =$D$7 -> 40.75 | F98: =B98*'Calculs choix indemnité'!$F$17 ->  | H98: 0
A99: Semaine nuit | C99: =TEXT(IF(AND(H88<>"",K87="S",M87<>"F"),H88+0,"0"),"hh:mm") ->  | D99: =$D$4 -> 36.25 | E99: =IF(C99<>"",ROUND(C99*24,2),"0") ->  | F99: =C99*'Calculs choix indemnité'!$F$17 ->  | H99: 0
A100: Fin de semaine nuit | C100: =TEXT(IF(AND(H88<>"",K87="FDS",M87<>"F"),H88+0,"0"),"hh:mm") ->  | D100: =$D$6 -> 39.25 | E100: =IF(C100<>"",ROUND(C100*24,2),"0") ->  | F100: =C100*'Calculs choix indemnité'!$F$17 ->  | H100: 0
A101: Férié nuit | C101: =TEXT(IF(AND(H88<>"",M87="F"),H88+0,"0"),"hh:mm") ->  | D101: =$D$8 -> 49 | E101: =IF(C101<>"",ROUND(C101*24,2),"0") ->  | F101: =C101*'Calculs choix indemnité'!$F$17 ->  | H101: 0
B102: =SUM(B93:B101) ->  | C102: =SUM(C93:C101) ->  | E102: =SUM(E93:E101) ->  | F102: =SUM(F93:F101) ->  | G102: =SUM(G93:G101) ->  | H102: =SUM($H93:$H101) -> 0
B106: Début | C106: Fin | G106: Assistance
A107: Date début / fin | B107: =Assistance!D21 -> 00:00:00 | C107: =Assistance!F21 -> 00:00:00 | D107: =TEXT(B107,"aaaa-mm-jj ")&TEXT(B108,"hh:mm") -> 1900-01-00 00:00
A108: Heure début / fin | B108: =Assistance!D23 -> 00:00:00 | C108: =Assistance!F23 -> 00:00:00 | D108: =TEXT(C107,"aaaa-mm-jj ")&TEXT(C108,"hh:mm") -> 1900-01-00 00:00 | F108: =IF(AND(B109>$A$8,B109<$A$7),B109,"") -> 
A109: Heure modifiée | B109: =TEXT(B108,"hh:mm") -> 00:00 | C109: =TEXT(IF(D109<K123,C108,B109+K123),"hh:mm") ->  | D109: =D108-D107 -> 
E113: =IF(E115>=K123,"Dépassement","") -> Dépassement | G113: =IFERROR(IF(AND(B118="oui",D109<K123),$A$10-C118,$A$10-C118),"") ->  | H113: =TEXT(IFERROR(IF(AND(C109>$A$8,B118="oui"),$A$8,E118-G118),""),"hh:mm") ->  | I113: =IFERROR(IF(AND(E118-G113-H113>0,B118="oui"),IF(C109-$A$8>0,C109-$A$8,"")),) -> 00:00:00 | J113: Semaine ou FDS | L113: Férié ou ordinaire
C114: Début | D114: Fin | E114: Durée totale | G114: Durée jour 1 | H114: Durée nuit | I114: Durée jour 2 | J114: Jour 1 | K114: Jour 2 | L114: Jour 1 | M114: Jour 2
A115: Jour + Jour | B115: =IF(C107-B107=0, "oui",IF(AND(C107-B107=1,B109+K61<=A10), "oui", "non")) -> oui | C115: =IF(AND(B109>=$A$8,B109<=$A$7,B115="oui"),B109,"") ->  | D115: =IF(C115<>"",C109,"") ->  | E115: =IF(AND(D115="",C115=""),"",IF(D115="00:00",A103-B109,D115-C115)) ->  | G115: =$E115 ->  | J115: =IFERROR(IF(VLOOKUP(B107,'Jours fériés'!$B$4:$E$5000,2,FALSE)="s","S","FDS"),0) -> 0 | L115: =IF(VLOOKUP(B107,'Jours fériés'!$B$4:$E$5000,3,FALSE)="Oui","F","") -> 
A116: Nuit+ Nuit | B116: =IF(C107-B107=0,"oui","non") -> oui | C116: =IF(AND(B109>=$A$5, C109<=$A$8, B116="oui"), B109,"") ->  | D116: =IF(C116<>"",C109,"") ->  | E116: =TEXT(IF(D116<>"",D116-C116,""),"hh:mm") ->  | H116: =TEXT($E116,"hh:mm") ->  | J116: =IF(VLOOKUP(B107,'Jours fériés'!B94:$E$5000,2,FALSE)="s","S","FDS") ->  | L116: =IF(VLOOKUP(B107,'Jours fériés'!$B$4:$E$5000,3,FALSE)="Oui","F","") -> 
A117: Nuit + Jour | B117: =IF(C107-B107=0,"oui","non") -> oui | C117: =IF(AND(B109>=$A$5, B109<$A$8, C109>$A$8, B117="oui"), B109,"") ->  | D117: =IF(C117<>"",C109,"") ->  | E117: =TEXT(IF(D117<>"",D117-C117,""),"hh:mm") ->  | H117: =TEXT(IF(D117<>"",$A$8-C117,""),"hh:mm") ->  | I117: =IF(E117<>"",D117-$A$8,"") ->  | J117: =IF(VLOOKUP(B107,'Jours fériés'!$B$4:$E$5000,2,FALSE)="s","S","FDS") ->  | K117: =IF(VLOOKUP(C107,'Jours fériés'!$B$4:$E$5000,2,FALSE)="s","S","FDS") ->  | L117: =IF(VLOOKUP(B107,'Jours fériés'!$B$4:$E$5000,3,FALSE)="Oui","F","") ->  | M117: =IF(VLOOKUP(C107,'Jours fériés'!$B$4:$E$5000,3,FALSE)="Oui","F","") -> 
A118: Jour + Nuit | B118: =IF(AND(C107-B107=1,B109+K61<=A41), "non",IF(C107-B107=1,"oui","non")) -> non | C118: =IF(B118="oui",B108,"") ->  | D118: =IF(C118<>"",C109,"") ->  | E118: =IF(D118<>"",($A$10-C118)+D118,"") ->  | G118: =IF(G113="","",G113) ->  | H118: =TEXT(IFERROR(IF(H113="","",H113),""),"hh:mm") ->  | I118: =IFERROR(IF(I113="","",I113),"") -> 00:00:00 | J118: =IF(VLOOKUP(B107,'Jours fériés'!$B$4:$E$5000,2,FALSE)="s","S","FDS") ->  | K118: =IF(VLOOKUP(C107,'Jours fériés'!$B$4:$E$5000,2,FALSE)="s","S","FDS") ->  | L118: =IF(VLOOKUP(B107,'Jours fériés'!$B$4:$E$5000,3,FALSE)="Oui","F","") ->  | M118: =IF(VLOOKUP(C107,'Jours fériés'!$B$4:$E$5000,3,FALSE)="Oui","F","") -> 
C119: =C118 ->  | D119: =D118 ->  | E119: =SUM(E115:E118) ->  | G119: =TEXT(IF(L126=TRUE,SUM(G115:G118),""),"hh:mm") ->  | H119: =IF(H116<>"",H116,IF(H117<>"",H117,IF(H118<>"",H118,""))) ->  | I119: =TEXT(IF(L128=TRUE,SUM(I115:I118),""),"hh:mm") -> 
B123: JOUR | C123: NUIT | D123: Taux | E123: en centièmes X 1 | H123: TOTAL | K123: 09:00:00 | M123: 09:00:00 | N123: 18:00:00
A124: Semaine jour 1 | B124: =TEXT(IF(AND(G119<>"",J118="S",L118<>"F"),G119,"0"),"hh:mm") ->  | D124: =$D$3 -> 29.25 | E124: =IF(AND(B124<>$A$5,B124<>""),ROUND(B124*24,2),) ->  | H124: =IF(AND(G124=0,$N126=1),E124*D124,IF($N126=2,G124*D124,)) ->  | M124: 09:00:00 | N124: 18:00:00
A125: Semaine jour 2 | B125: =TEXT(IF(AND(I119<>"",K118="S",M118<>"F"),I119,"0"),"hh:mm") ->  | D125: =$D$3 -> 29.25 | H125: =IF(AND(G125=0,$N126=1),E125*D125,IF($N126=2,G125*D125,)) ->  | K125: Tableau Total en orange: | L125: =OR($H124<>"",$H125<>"",$H126<>"",$H127<>"",$H128<>"",$H129<>"",$H130<>"",$H131<>"",$H132<>"") -> 
A126: Fin de semaine jour 1 | B126: =TEXT(IF(AND(G119<>"",J118="fds",L118<>"F"),G119,"0"),"hh:mm") ->  | D126: =$D$5 -> 32.5 | H126: =IF(AND(G126=0,$N126=1),E126*D126,IF($N126=2,G126*D126,)) ->  | K126: Tableau durée jour: | L126: =OR($G115<>"",$G117<>"",$G118<>"") -> FALSE | M126: nbre préposés | N126: 1
A127: Fin de semaine jour 2 | B127: =TEXT(IF(AND(I119<>"",K118="fds",M118<>"F"),I119,"0"),"hh:mm") ->  | D127: =$D$5 -> 32.5 | H127: =IF(AND(G127=0,$N126=1),E127*D127,IF($N126=2,G127*D127,)) ->  | K127: Tableau durée nuit: | L127: =OR($H115<>"",$H116<>"",$H117<>"",$H118<>"") -> 
A128: Férié jour 1 | B128: =TEXT(IF(AND(G119<>"",L118="F"),G119,"0"),"hh:mm") ->  | D128: =$D$7 -> 40.75 | H128: =IF(AND(G128=0,$N126=1),E128*D128,IF($N126=2,G128*D128,)) ->  | K128: Tableau durée jour 2: | L128: =OR(I116<>"",I117<>"",I118<>"") -> 
A129: Férie jour 2 | B129: =TEXT(IF(AND(I119<>"",M118="F"),I119,"0"),"hh:mm") ->  | D129: =$D$7 -> 40.75 | H129: =IF(AND(G129=0,$N126=1),E129*D129,IF($N126=2,G129*D129,)) -> 
A130: Semaine nuit | C130: =TEXT(IF(AND(H119<>"",K118="S",M118<>"F"),H119+0,"0"),"hh:mm") ->  | D130: =$D$4 -> 36.25 | E130: =IF(C130<>"",ROUND(C130*24,2),"0") ->  | H130: =IF(AND(G130=0,$N126=1),E130*D130,IF($N126=2,G130*D130,)) -> 
A131: Fin de semaine nuit | C131: =TEXT(IF(AND(H119<>"",K118="FDS",M118<>"F"),H119+0,"0"),"hh:mm") ->  | D131: =$D$6 -> 39.25 | E131: =IF(C131<>"",ROUND(C131*24,2),"0") ->  | H131: =IF(AND(G131=0,$N126=1),E131*D131,IF($N126=2,G131*D131,)) -> 
A132: Férié nuit | C132: =TEXT(IF(AND(H119<>"",M118="F"),H119+0,"0"),"hh:mm") ->  | D132: =$D$8 -> 49 | E132: =IF(C132<>"",ROUND(C132*24,2),"0") ->  | H132: =IF(AND(G132=0,$N126=1),E132*D132,IF($N126=2,G132*D132,)) -> 
B133: =SUM(B124:B132) ->  | C133: =SUM(C124:C132) ->  | E133: =SUM(E124:E132) ->  | F133: =SUM(F124:F132) -> 0 | G133: =SUM(G124:G132) -> 0 | H133: =SUM($H124:$H132) -> 

Sheet Calculs choix indemnité (hidden)
A3: NE RIEN MODIFIER DANS CE TABLEAU SOUS PEINE D'ÉLECTROCUTION
C5: 1er trsp
A7: =IF(Général!$G$14="","",(TEXT(Général!$G$14,"aaaa-mm-jj"))) ->  | B7: =IF(Général!$L$14="","",TEXT(Général!$L$14,"aaaa-mm-jj")) -> 
A8: =IF(Général!$G$16="","",TEXT(Général!$G$16,"hh:mm")) ->  | B8: =IF(Général!$L$16="","",TEXT(Général!$L$16,"hh:mm")) ->  | C8: =B9-A9 -> 
A9: =A7&" "&A8 ->  | B9: =B7&" "&B8 -> 
A10: =B9-A9 ->  | B10: =IF(A10<A12,A21,IF(AND(A10>=A12,Hébergement!D17=""),A22,IF(A10<A13,A23,IF(A10<A14,A24,IF(A10>A14,A25))))) ->  | D10: Inscrivez d'abord les dépenses réelles dans Repas et Stationnement. Choisissez ensuite la ville de votre destination. Enfin, utilisez le bouton Choix pour effectuer un choix entre l'indemnité journalière ou les dépenses réelles.
A11: =TEXT(B9-A9,"[hh]:mm") ->  | B11: et comprend un coucher. | D11: Inscrivez d'abord les dépenses réelles dans Repas, Hébergement et Stationnement. Utilisez ensuite le bouton Choix pour effectuer un choix entre l'indemnité journalière ou les dépenses réelles.
A12: 12:00:00 | B12: et ne comprend pas de coucher.
A13: 0.75
A14: 1
A15: choisi dans Hébergement | B15: choisi dans Hébergement | C15: pour faciliter l'indexation | D15: Indemnité de 50 % | E15: Indemnité de 100 % | F15: nombre de préposés
A16: =Hébergement!D17 -> 0 | B16: =Hébergement!D19 -> 0 | C16: =IF($B16="entre le 1er juillet et le 31 octobre","haute saison","basse saison") -> basse saison | D16: =INDEX(TAUX!$G$50:$H$58,MATCH($A16,TAUX!$F$50:$F$58,0),MATCH($C16,TAUX!$G$49:$H$49,0)) -> 
A17: =Hébergement!D17 -> 0 | B17: =Hébergement!D19 -> 0 | C17: =IF($B17="entre le 1er juillet et le 31 octobre","haute saison","basse saison") -> basse saison | E17: =INDEX(TAUX!$C$50:$D$58,MATCH($A17,TAUX!$B$50:$B$58,0),MATCH($C17,TAUX!$C$49:$D$49,0)) ->  | F17: =Divers!$H$21 -> 0
A18: =B10 -> 
C19: Vous pouvez choisir de demander le remboursement des dépenses réelles ou une indemnité journalière. Inscrivez d'abord le coût des repas via le bouton Repas et le coût de l'hébergement via le bouton Hébergement. Effectuez ensuite votre choix via le bouton Choix.
A21: est inférieure à 12 heures | C21: La durée du transport est inférieure à 12 heures. | G21: La durée du transport est inférieure à 12 heures.
A22: est supérieure à 12 heures | C22: La durée du transport est supérieure à 12 heures et ne comprend pas de coucher. | G22: La durée du transport est supérieure à 12 heures
A23: se situe entre 12 et 18 heures | C23: La durée du transport se situe entre 12 et 18 heures et comprend un coucher. | G23: La durée du transport se situe entre 12 et 18 heures
A24: se situe entre 18 et 24 heures | C24: La durée du transport se situe entre 18 et 24 heures et comprend un coucher. | G24: La durée du transport se situe entre 18 et 24 heures
A25: est supérieure à 24 heures | C25: La durée du transport est supérieure à 24 heures et comprend un coucher. | G25: La durée du transport est supérieure à 24 heures
A27: Vous ne pouvez pas demander le remboursement des frais d'hébergement, par contre, vous avez droit au remboursement repas, s'il y a lieu.
A28: Vous avez droit de demander le remboursement des frais d'hébergement et des repas, s'il y a lieu.
A30: Vous ne pouvez pas demander le remboursement des frais d'hébergement. Veuillez choisir NON s.v.p.!
A33: Vous n'avez pas droit à une indemnité journalière et devez demander le remboursement de vos dépenses relles pour les repas, s'il y a lieu, sur présentation de factures originales.
A34: Vous pouvez choisir de demander 50 % de l'indemnité journalière prévue sans présentation de factures ou le remboursement des dépenses réelles sur présentation des factures originales.
A35: Vous pouvez choisir de demander 100 % de l'indemnité journalière prévue sans présentation de factures ou le remboursement des dépenses réelles sur présentation des factures originales.
A36: Vous pouvez choisir de demander 100 % de l'indemnité journalière prévue + les repas supplémentaires pris au-delà des 24 heures sans présentation de factures ou le remboursement des dépenses réelles sur présentation des factures originales.
A37: 50 % de l'indemnité prévue
A38: 100 % de l'indemnité prévue + les repas pris au-delà de la période de 24 heures.

Sheet Divers (hidden)
H2: Non
C3: Pour calculer les frais de garde | F3: Période de coucher | H3: Oui
F5: Entre le 1er juillet et le 31 octobre
C6: Cumulatif période de garde de 24 heures | F6: Entre le 1er novembre et le 30 juin
B7: 1 jour | C7: 1 | G7: Entre le 1er novembre et le 30 juin | H7: entre le 1er juillet et le 31 octobre
B8: 2 jours | C8: 2 | F8: Montréal | G8: =TAUX!C50 -> 219 | H8: =TAUX!D50 -> 235
B9: 3 jours | C9: 3 | F9: Québec | G9: =TAUX!C51 -> 193 | H9: =TAUX!D51 -> 193
B10: 4 jours | C10: 4 | F10: Laval | G10: =TAUX!C52 -> 188 | H10: =TAUX!D52 -> 198
B11: 5 jours | C11: 5 | F11: Gatineau | G11: =TAUX!C53 -> 188 | H11: =TAUX!D53 -> 198
B12: 6 jours | C12: 6 | F12: Longueuil | G12: =TAUX!C54 -> 188 | H12: =TAUX!D54 -> 198
B13: 7 jours | C13: 7 | F13: Lac-Beauport | G13: =TAUX!C55 -> 188 | H13: =TAUX!D55 -> 198
B14: 8 jours | C14: 8 | F14: Lac-Delage | G14: =TAUX!C56 -> 188 | H14: =TAUX!D56 -> 198
B15: 9 jours | C15: 9 | F15: Rimouski | G15: =TAUX!C57 -> 164 | H15: =TAUX!D57 -> 169
B16: 10 jours | C16: 10 | F16: Ailleurs | G16: =TAUX!C58 -> 164 | H16: =TAUX!D58 -> 169
B17: 11 jours | C17: 11
G18: 1er préposé | H18: =IFERROR(IF(Général!$G9<>"",1),"") -> FALSE
B19: ATTENTION: | G19: 2e préposé | H19: =IFERROR(IF(Général!$G10<>"",1),"") -> FALSE
G20: 3e préposé | H20: =IFERROR(IF(Général!$G11<>"",1),"") -> FALSE
B21: NE RIEN MODIFIER DANS CE TABLEAU. | G21: Total nombre de préposés | H21: =H18+H19+H20 -> 0
B22: TOUTES LES DES DONNÉES PROVIENNENT DE L'ONGLET TAUX.
B23: SI CHANGEMENT DES TARIFS MAXIMUMS, FAIRE LES MODIFICATIONS DANS ONGLET TAUX | H23: =IFERROR(IF(Général!G9:J9<>"",1),"") -> FALSE
B28: 1 préposé en minutes | C28: 1 préposé en centièmes | D28: 2 préposés en centièmes | E28: 3 préposés en centièmes
B29: 00:00:00 | C29: 0 | D29: 0 | E29: 0
B30: 00:01:00 | C30: 0.02 | D30: 0.03333333333 | E30: 0.05
B31: 00:02:00 | C31: 0.03 | D31: 0.06666666667 | E31: 0.1
B32: 00:03:00 | C32: 0.05 | D32: 0.1 | E32: 0.15
B33: 00:04:00 | C33: 0.07 | D33: 0.1333333333 | E33: 0.2
B34: 00:05:00 | C34: 0.08 | D34: 0.1666666667 | E34: 0.25
B35: 00:06:00 | C35: 0.1 | D35: 0.2 | E35: 0.3
B36: 00:07:00 | C36: 0.12 | D36: 0.2333333333 | E36: 0.35
B37: 00:08:00 | C37: 0.13 | D37: 0.2666666667 | E37: 0.4
B38: 00:09:00 | C38: 0.15 | D38: 0.3 | E38: 0.45
B39: 00:10:00 | C39: 0.17 | D39: 0.3333333333 | E39: 0.5
B40: 00:11:00 | C40: 0.18 | D40: 0.3666666667 | E40: 0.55
B41: 00:12:00 | C41: 0.2 | D41: 0.4 | E41: 0.6
B42: 00:13:00 | C42: 0.22 | D42: 0.4333333333 | E42: 0.65
B43: 00:14:00 | C43: 0.23 | D43: 0.4666666667 | E43: 0.7
B44: 00:15:00 | C44: 0.25 | D44: 0.5 | E44: 0.75
B45: 00:16:00 | C45: 0.27 | D45: 0.5333333333 | E45: 0.8
B46: 00:17:00 | C46: 0.28 | D46: 0.5666666667 | E46: 0.85
B47: 00:18:00 | C47: 0.3 | D47: 0.6 | E47: 0.9
B48: 00:19:00 | C48: 0.32 | D48: 0.6333333333 | E48: 0.95
B49: 00:20:00 | C49: 0.33 | D49: 0.6666666667 | E49: 1
B50: 00:21:00 | C50: 0.35 | D50: 0.7 | E50: 1.05
B51: 00:22:00 | C51: 0.37 | D51: 0.7333333333 | E51: 1.1
B52: 00:23:00 | C52: 0.38 | D52: 0.7666666667 | E52: 1.15
B53: 00:24:00 | C53: 0.4 | D53: 0.8 | E53: 1.2
B54: 00:25:00 | C54: 0.42 | D54: 0.8333333333 | E54: 1.25
B55: 00:26:00 | C55: 0.43 | D55: 0.8666666667 | E55: 1.3
B56: 00:27:00 | C56: 0.45 | D56: 0.9 | E56: 1.35
B57: 00:28:00 | C57: 0.47 | D57: 0.9333333333 | E57: 1.4
B58: 00:29:00 | C58: 0.48 | D58: 0.9666666667 | E58: 1.45
B59: 00:30:00 | C59: 0.5 | D59: 1 | E59: 1.5
B60: 00:31:00 | C60: 0.52 | D60: 1.033333333 | E60: 1.55
B61: 00:32:00 | C61: 0.53 | D61: 1.066666667 | E61: 1.6
B62: 00:33:00 | C62: 0.55 | D62: 1.1 | E62: 1.65
B63: 00:34:00 | C63: 0.57 | D63: 1.133333333 | E63: 1.7
B64: 00:35:00 | C64: 0.58 | D64: 1.166666667 | E64: 1.75
B65: 00:36:00 | C65: 0.6 | D65: 1.2 | E65: 1.8
B66: 00:37:00 | C66: 0.62 | D66: 1.233333333 | E66: 1.85
B67: 00:38:00 | C67: 0.63 | D67: 1.266666667 | E67: 1.9
B68: 00:39:00 | C68: 0.65 | D68: 1.3 | E68: 1.95
B69: 00:40:00 | C69: 0.67 | D69: 1.333333333 | E69: 2
B70: 00:41:00 | C70: 0.68 | D70: 1.366666667 | E70: 2.05
B71: 00:42:00 | C71: 0.7 | D71: 1.4 | E71: 2.1
B72: 00:43:00 | C72: 0.72 | D72: 1.433333333 | E72: 2.15
B73: 00:44:00 | C73: 0.73 | D73: 1.466666667 | E73: 2.2
B74: 00:45:00 | C74: 0.75 | D74: 1.5 | E74: 2.25
B75: 00:46:00 | C75: 0.77 | D75: 1.533333333 | E75: 2.3
B76: 00:47:00 | C76: 0.78 | D76: 1.566666667 | E76: 2.35
B77: 00:48:00 | C77: 0.8 | D77: 1.6 | E77: 2.4
B78: 00:49:00 | C78: 0.82 | D78: 1.633333333 | E78: 2.45
A79: =TEXT(B79,"hh:mm") -> 00:50 | B79: 00:50:00 | C79: 0.83 | D79: 1.666666667 | E79: 2.5
B80: 00:51:00 | C80: 0.85 | D80: 1.7 | E80: 2.55
B81: 00:52:00 | C81: 0.87 | D81: 1.733333333 | E81: 2.6
B82: 00:53:00 | C82: 0.88 | D82: 1.766666667 | E82: 2.65
B83: 00:54:00 | C83: 0.9 | D83: 1.8 | E83: 2.7
B84: 00:55:00 | C84: 0.92 | D84: 1.833333333 | E84: 2.75
B85: 00:56:00 | C85: 0.93 | D85: 1.866666667 | E85: 2.8
B86: 00:57:00 | C86: 0.95 | D86: 1.9 | E86: 2.85
B87: 00:58:00 | C87: 0.97 | D87: 1.933333333 | E87: 2.9
B88: 00:59:00 | C88: 0.98 | D88: 1.966666667 | E88: 2.95
B89: 01:00:00 | C89: 1 | D89: 2 | E89: 3
B90: 01:01:00 | C90: 1.02 | D90: 2.033333333 | E90: 3.05
B91: 01:02:00 | C91: 1.03 | D91: 2.066666667 | E91: 3.1
B92: 01:03:00 | C92: 1.05 | D92: 2.1 | E92: 3.15
B93: 01:04:00 | C93: 1.07 | D93: 2.133333333 | E93: 3.2
B94: 01:05:00 | C94: 1.08 | D94: 2.166666667 | E94: 3.25
B95: 01:06:00 | C95: 1.1 | D95: 2.2 | E95: 3.3
B96: 01:07:00 | C96: 1.12 | D96: 2.233333333 | E96: 3.35
B97: 01:08:00 | C97: 1.13 | D97: 2.266666667 | E97: 3.4
B98: 01:09:00 | C98: 1.15 | D98: 2.3 | E98: 3.45
B99: 01:10:00 | C99: 1.17 | D99: 2.333333333 | E99: 3.5
B100: 01:11:00 | C100: 1.18 | D100: 2.366666667 | E100: 3.55
B101: 01:12:00 | C101: 1.2 | D101: 2.4 | E101: 3.6
B102: 01:13:00 | C102: 1.22 | D102: 2.433333333 | E102: 3.65
B103: 01:14:00 | C103: 1.23 | D103: 2.466666667 | E103: 3.7
B104: 01:15:00 | C104: 1.25 | D104: 2.5 | E104: 3.75
B105: 01:16:00 | C105: 1.27 | D105: 2.533333333 | E105: 3.8
B106: 01:17:00 | C106: 1.28 | D106: 2.566666667 | E106: 3.85
B107: 01:18:00 | C107: 1.3 | D107: 2.6 | E107: 3.9
B108: 01:19:00 | C108: 1.32 | D108: 2.633333333 | E108: 3.95
B109: 01:20:00 | C109: 1.33 | D109: 2.666666667 | E109: 4
B110: 01:21:00 | C110: 1.35 | D110: 2.7 | E110: 4.05
B111: 01:22:00 | C111: 1.37 | D111: 2.733333333 | E111: 4.1
B112: 01:23:00 | C112: 1.38 | D112: 2.766666667 | E112: 4.15
B113: 01:24:00 | C113: 1.4 | D113: 2.8 | E113: 4.2
B114: 01:25:00 | C114: 1.42 | D114: 2.833333333 | E114: 4.25
B115: 01:26:00 | C115: 1.43 | D115: 2.866666667 | E115: 4.3
B116: 01:27:00 | C116: 1.45 | D116: 2.9 | E116: 4.35
B117: 01:28:00 | C117: 1.47 | D117: 2.933333333 | E117: 4.4
B118: 01:29:00 | C118: 1.48 | D118: 2.966666667 | E118: 4.45
B119: 01:30:00 | C119: 1.5 | D119: 3 | E119: 4.5
B120: 01:31:00 | C120: 1.52 | D120: 3.033333333 | E120: 4.55
B121: 01:32:00 | C121: 1.53 | D121: 3.066666667 | E121: 4.6
B122: 01:33:00 | C122: 1.55 | D122: 3.1 | E122: 4.65
B123: 01:34:00 | C123: 1.57 | D123: 3.133333333 | E123: 4.7
B124: 01:35:00 | C124: 1.58 | D124: 3.166666667 | E124: 4.75
B125: 01:36:00 | C125: 1.6 | D125: 3.2 | E125: 4.8
B126: 01:37:00 | C126: 1.62 | D126: 3.233333333 | E126: 4.85
B127: 01:38:00 | C127: 1.63 | D127: 3.266666667 | E127: 4.9
B128: 01:39:00 | C128: 1.65 | D128: 3.3 | E128: 4.95
B129: 01:40:00 | C129: 1.67 | D129: 3.333333333 | E129: 5
B130: 01:41:00 | C130: 1.68 | D130: 3.366666667 | E130: 5.05
B131: 01:42:00 | C131: 1.7 | D131: 3.4 | E131: 5.1
B132: 01:43:00 | C132: 1.72 | D132: 3.433333333 | E132: 5.15
B133: 01:44:00 | C133: 1.73 | D133: 3.466666667 | E133: 5.2
B134: 01:45:00 | C134: 1.75 | D134: 3.5 | E134: 5.25
B135: 01:46:00 | C135: 1.77 | D135: 3.533333333 | E135: 5.3
B136: 01:47:00 | C136: 1.78 | D136: 3.566666667 | E136: 5.35
B137: 01:48:00 | C137: 1.8 | D137: 3.6 | E137: 5.4
B138: 01:49:00 | C138: 1.82 | D138: 3.633333333 | E138: 5.45
B139: 01:50:00 | C139: 1.83 | D139: 3.666666667 | E139: 5.5
B140: 01:51:00 | C140: 1.85 | D140: 3.7 | E140: 5.55
B141: 01:52:00 | C141: 1.87 | D141: 3.733333333 | E141: 5.6
B142: 01:53:00 | C142: 1.88 | D142: 3.766666667 | E142: 5.65
B143: 01:54:00 | C143: 1.9 | D143: 3.8 | E143: 5.7
B144: 01:55:00 | C144: 1.92 | D144: 3.833333333 | E144: 5.75
B145: 01:56:00 | C145: 1.93 | D145: 3.866666667 | E145: 5.8
B146: 01:57:00 | C146: 1.95 | D146: 3.9 | E146: 5.85
B147: 01:58:00 | C147: 1.97 | D147: 3.933333333 | E147: 5.9
B148: 01:59:00 | C148: 1.98 | D148: 3.966666667 | E148: 5.95
B149: 02:00:00 | C149: 2 | D149: 4 | E149: 6
B150: 02:01:00 | C150: 2.02 | D150: 4.033333333 | E150: 6.05
B151: 02:02:00 | C151: 2.03 | D151: 4.066666667 | E151: 6.1
B152: 02:03:00 | C152: 2.05 | D152: 4.1 | E152: 6.15
B153: 02:04:00 | C153: 2.07 | D153: 4.133333333 | E153: 6.2
B154: 02:05:00 | C154: 2.08 | D154: 4.166666667 | E154: 6.25
B155: 02:06:00 | C155: 2.1 | D155: 4.2 | E155: 6.3
B156: 02:07:00 | C156: 2.12 | D156: 4.233333333 | E156: 6.35
B157: 02:08:00 | C157: 2.13 | D157: 4.266666667 | E157: 6.4
B158: 02:09:00 | C158: 2.15 | D158: 4.3 | E158: 6.45
B159: 02:10:00 | C159: 2.17 | D159: 4.333333333 | E159: 6.5
B160: 02:11:00 | C160: 2.18 | D160: 4.366666667 | E160: 6.55
B161: 02:12:00 | C161: 2.2 | D161: 4.4 | E161: 6.6
B162: 02:13:00 | C162: 2.22 | D162: 4.433333333 | E162: 6.65
B163: 02:14:00 | C163: 2.23 | D163: 4.466666667 | E163: 6.7
B164: 02:15:00 | C164: 2.25 | D164: 4.5 | E164: 6.75
B165: 02:16:00 | C165: 2.27 | D165: 4.533333333 | E165: 6.8
B166: 02:17:00 | C166: 2.28 | D166: 4.566666667 | E166: 6.85
B167: 02:18:00 | C167: 2.3 | D167: 4.6 | E167: 6.9
B168: 02:19:00 | C168: 2.32 | D168: 4.633333333 | E168: 6.95
B169: 02:20:00 | C169: 2.33 | D169: 4.666666667 | E169: 7
B170: 02:21:00 | C170: 2.35 | D170: 4.7 | E170: 7.05
B171: 02:22:00 | C171: 2.37 | D171: 4.733333333 | E171: 7.1
B172: 02:23:00 | C172: 2.38 | D172: 4.766666667 | E172: 7.15
B173: 02:24:00 | C173: 2.4 | D173: 4.8 | E173: 7.2
B174: 02:25:00 | C174: 2.42 | D174: 4.833333333 | E174: 7.25
B175: 02:26:00 | C175: 2.43 | D175: 4.866666667 | E175: 7.3
B176: 02:27:00 | C176: 2.45 | D176: 4.9 | E176: 7.35
B177: 02:28:00 | C177: 2.47 | D177: 4.933333333 | E177: 7.4
B178: 02:29:00 | C178: 2.48 | D178: 4.966666667 | E178: 7.45
B179: 02:30:00 | C179: 2.5 | D179: 5 | E179: 7.5
B180: 02:31:00 | C180: 2.52 | D180: 5.033333333 | E180: 7.55
B181: 02:32:00 | C181: 2.53 | D181: 5.066666667 | E181: 7.6
B182: 02:33:00 | C182: 2.55 | D182: 5.1 | E182: 7.65
B183: 02:34:00 | C183: 2.57 | D183: 5.133333333 | E183: 7.7
B184: 02:35:00 | C184: 2.58 | D184: 5.166666667 | E184: 7.75
B185: 02:36:00 | C185: 2.6 | D185: 5.2 | E185: 7.8
B186: 02:37:00 | C186: 2.62 | D186: 5.233333333 | E186: 7.85
B187: 02:38:00 | C187: 2.63 | D187: 5.266666667 | E187: 7.9
B188: 02:39:00 | C188: 2.65 | D188: 5.3 | E188: 7.95
B189: 02:40:00 | C189: 2.67 | D189: 5.333333333 | E189: 8
B190: 02:41:00 | C190: 2.68 | D190: 5.366666667 | E190: 8.05
B191: 02:42:00 | C191: 2.7 | D191: 5.4 | E191: 8.1
B192: 02:43:00 | C192: 2.72 | D192: 5.433333333 | E192: 8.15
B193: 02:44:00 | C193: 2.73 | D193: 5.466666667 | E193: 8.2
B194: 02:45:00 | C194: 2.75 | D194: 5.5 | E194: 8.25
B195: 02:46:00 | C195: 2.77 | D195: 5.533333333 | E195: 8.3
B196: 02:47:00 | C196: 2.78 | D196: 5.566666667 | E196: 8.35
B197: 02:48:00 | C197: 2.8 | D197: 5.6 | E197: 8.4
B198: 02:49:00 | C198: 2.82 | D198: 5.633333333 | E198: 8.45
B199: 02:50:00 | C199: 2.83 | D199: 5.666666667 | E199: 8.5
B200: 02:51:00 | C200: 2.85 | D200: 5.7 | E200: 8.55
B201: 02:52:00 | C201: 2.87 | D201: 5.733333333 | E201: 8.6
B202: 02:53:00 | C202: 2.88 | D202: 5.766666667 | E202: 8.65
B203: 02:54:00 | C203: 2.9 | D203: 5.8 | E203: 8.7
B204: 02:55:00 | C204: 2.92 | D204: 5.833333333 | E204: 8.75
B205: 02:56:00 | C205: 2.93 | D205: 5.866666667 | E205: 8.8
B206: 02:57:00 | C206: 2.95 | D206: 5.9 | E206: 8.85
... 962 more rows

Sheet Hébergement (hidden)
F3: =Général!L3 -> 0
B9: =IF(OR(Général!J79=2,'Calculs choix indemnité'!A10<'Calculs choix indemnité'!A12), "ATTENTION: Vous ne pouvez demander le remboursement des frais d'hébergement.", "") -> 
B11: Remplir les cellules jaunes seulement, si votre transport comprend un coucher.
D14: =CONCATENATE(Général!G9," ",Général!J9) ->  | F14: =CONCATENATE(Général!G10," ",Général!J10) -> 
B17: Lieu du coucher | F17: =D17 -> 0
B19: Période le l'année | F19: =D19 -> 0
B20: Montant maximal pouvant être remboursé excluant toutes taxes | D20: =IFERROR(INDEX(Divers!$G$8:$H$16,MATCH(D17,Divers!$F$8:$F$16,0),MATCH(D19,Divers!$G$7:$H$7,0)),"") ->  | F20: =IFERROR(INDEX(Divers!$G$8:$H$16,MATCH(F17,Divers!$F$8:$F$16,0),MATCH(F19,Divers!$G$7:$H$7,0)),"") -> 
B21: Coût du coucher inscrit sur la facture avant toutes taxes
B23: Taxes sur l'hébergement inscrit sur la facture
B25: Montant maximal pouvant être remboursé excluant TPS et TVQ | D25: =IF(D20<D21,D20+D23,D21+D23) -> 0 | F25: =IF(F20<F21,F20+F23,F21+F23) -> 0
F27: =IFERROR(D25+F25,"") -> 0
B31: Commentaires:

Sheet Repas (hidden)
L4: =Général!L3 -> 0
B11: Remplir les cellules jaunes seulement. Inscrire le coût des repas sans taxes, et les pourboires séparément.
D14: =CONCATENATE(Général!G9," ",Général!J9) ->  | I14: =CONCATENATE(Général!G10," ",Général!J10) -> 
B17: Déjeuner | D17: Coûts réels | F17: Coûts admissibles | I17: Coûts réels | K17: Coûts admissibles | M17: Total coûts admissibles | N17: colonnes pour pourboire maximum admissible A CACHER
N18: trudeau | O18: simars
B19: Coût avant taxes | F19: =IF($D19+$D20<'Calculs repas'!$D$12,$D19,'Calculs repas'!$D$7) -> 0 | K19: =IF($I19+$I20<'Calculs repas'!$D$12,$I19,'Calculs repas'!$D$7) -> 0 | M19: =F19+K19 -> 0 | N19: =$F19+$F20 -> 0 | O19: =$K19+$K20 -> 0
B20: Taxes | D20: =ROUND(D19*TAUX!$C$61,2)+ROUND(D19*TAUX!$C$62,2) -> 0 | F20: =IF($D19+$D20<'Calculs repas'!$D$12,$D20,'Calculs repas'!$D$10) -> 0 | I20: =ROUND(I19*TAUX!$C$61,2)+ROUND(I19*TAUX!$C$62,2) -> 0 | K20: =IF($I19+$I20<'Calculs repas'!$D$12,$I20,'Calculs repas'!$D$10) -> 0 | M20: =F20+K20 -> 0 | N20: =$D21 -> 0 | O20: =$I21 -> 0
B21: Pourboire | F21: =IF($N20<$N21,$N20,$N21) -> 0 | K21: =IF($O20<$O21,$O20,$O21) -> 0 | M21: =F21+K21 -> 0 | N21: =IF('Calculs repas'!$D$12-$N19>0,'Calculs repas'!$D$12-$N19,) -> 14.95 | O21: =IF('Calculs repas'!$D$12-$O19>0,'Calculs repas'!$D$12-$O19,) -> 14.95
B22: Total déjeuner | D22: =SUM(D19:D21) -> 0 | F22: =SUM(F19:F21) -> 0 | I22: =SUM(I19:I21) -> 0 | K22: =SUM(K19:K21) -> 0 | M22: =F22+K22 -> 0
B26: Dîner | D26: Coûts réels | F26: Coûts admissibles | I26: Coûts réels | K26: Coûts admissibles | M26: Total coûts admissibles
B28: Coût avant taxes | F28: =IF($D28+$D29<'Calculs repas'!$F$12,$D28,'Calculs repas'!$F$7) -> 0 | K28: =IF($I28+$I29<'Calculs repas'!$F$12,$I28,'Calculs repas'!$F$7) -> 0 | M28: =F28+K28 -> 0 | N28: =$F28+$F29 -> 0 | O28: =$K28+$K29 -> 0
B29: Taxes | D29: =ROUND(D28*TAUX!$C$61,2)+ROUND(D28*TAUX!$C$62,2) -> 0 | F29: =IF($D28+$D29<'Calculs repas'!$F$12,$D29,'Calculs repas'!$F$10) -> 0 | I29: =ROUND(I28*TAUX!$C$61,2)+ROUND(I28*TAUX!$C$62,2) -> 0 | K29: =IF($I28+$I29<'Calculs repas'!$F$12,$I29,'Calculs repas'!$F$10) -> 0 | M29: =F29+K29 -> 0 | N29: =$D30 -> 0 | O29: =$I30 -> 0
B30: Pourboire | F30: =IF($N29<$N30,$N29,$N30) -> 0 | K30: =IF($O29<$O30,$O29,$O30) -> 0 | M30: =F30+K30 -> 0 | N30: =IF('Calculs repas'!$F$12-$N28>0,'Calculs repas'!$F$12-$N28,) -> 20.580525 | O30: =IF('Calculs repas'!$F$12-$O28>0,'Calculs repas'!$F$12-$O28,) -> 20.580525
B31: Total déjeuner | D31: =SUM(D28:D30) -> 0 | F31: =SUM(F28:F30) -> 0 | I31: =SUM(I28:I30) -> 0 | K31: =SUM(K28:K30) -> 0 | M31: =F31+K31 -> 0
B35: Souper | D35: Coûts réels | F35: Coûts admissibles | I35: Coûts réels | K35: Coûts admissibles | M35: Total coûts admissibles
B37: Coût avant taxes | F37: =IF($D37+$D38<'Calculs repas'!$H$12,$D37,'Calculs repas'!$H$7) -> 0 | K37: =IF($I37+$I38<'Calculs repas'!$H$12,$I37,'Calculs repas'!$H$7) -> 0 | M37: =F37+K37 -> 0 | N37: =$F37+$F38 -> 0 | O37: =$K37+$K38 -> 0
B38: Taxes | D38: =D37*ROUNDUP(TAUX!D63,3) -> 0 | F38: =IF($D37+$D38<'Calculs repas'!$H$12, $D38, 'Calculs repas'!$H$10) -> 0 | I38: =IF(I37="18,70 $",[2]calculsrepas!$H$10,I37*TAUX!$C$63) -> 0 | K38: =IF($I37+$I38<'Calculs repas'!$H$12,$I38,'Calculs repas'!$H$10) -> 0 | M38: =F38+K38 -> 0 | N38: =$D39 -> 0 | O38: =$I39 -> 0
B39: Pourboire | F39: =IF($N38<$N39,$N38,$N39) -> 0 | K39: =IF($O38<$O39,$O38,$O39) -> 0 | M39: =F39+K39 -> 0 | N39: =IF('Calculs repas'!$H$12-$N37>0,'Calculs repas'!$H$12-$N37,) -> 31.04 | O39: =IF('Calculs repas'!$H$12-$O37>0,'Calculs repas'!$H$12-$O37,) -> 31.04
B40: Total déjeuner | D40: =SUM(D37:D39) -> 0 | F40: =SUM(F37:F39) -> 0 | I40: =SUM(I37:I39) -> 0 | K40: =SUM(K37:K39) -> 0 | M40: =F40+K40 -> 0
K42: Repas (section dépenses taxables remboursables) | M42: =M19+M28+M37 -> 0
K43: Taxes | M43: =M20+M29+M38 -> 0
K44: Pourboires (section dépenses non taxables remboursables) | M44: =M21+M30+M39 -> 0
K45: Total | M45: =SUM(M42:M44) -> 0
B47: REPAS AU-DELÀ DES PREMIERS 24 HEURES SEULEMENT
B49: Déjeuner | D49: Coûts réels | F49: Coûts admissibles | I49: Coûts réels | K49: Coûts admissibles | M49: Total coûts admissibles | N49: colonnes pour pourboire maximum admissible A CACHER
N50: trudeau | O50: simars
B51: Coût avant taxes | F51: =IF($D51+$D52<'Calculs repas'!$D$12,$D51,'Calculs repas'!$D$7) -> 0 | K51: =IF($I51+$I52<'Calculs repas'!$D$12,$I51,'Calculs repas'!$D$7) -> 0 | M51: =F51+K51 -> 0 | N51: =$F51+$F52 -> 0 | O51: =$K51+$K52 -> 0
B52: Taxes | D52: =ROUND(D51*TAUX!$C$61,2)+ROUND(D51*TAUX!$C$62,2) -> 0 | F52: =IF($D51+$D52<'Calculs repas'!$D$12,$D52,'Calculs repas'!$D$10) -> 0 | I52: =ROUND(I51*TAUX!$C$61,2)+ROUND(I51*TAUX!$C$62,2) -> 0 | K52: =IF($I51+$I52<'Calculs repas'!$D$12,$I52,'Calculs repas'!$D$10) -> 0 | M52: =F52+K52 -> 0 | N52: =$D53 -> 0 | O52: =$I53 -> 0
B53: Pourboire | F53: =IF($N52<$N53,$N52,$N53) -> 0 | K53: =IF($O52<$O53,$O52,$O53) -> 0 | M53: =F53+K53 -> 0 | N53: =IF('Calculs repas'!$D$12-$N51>0,'Calculs repas'!$D$12-$N51,) -> 14.95 | O53: =IF('Calculs repas'!$D$12-$O51>0,'Calculs repas'!$D$12-$O51,) -> 14.95
B54: Total déjeuner | D54: =SUM(D51:D53) -> 0 | F54: =SUM(F51:F53) -> 0 | I54: =SUM(I51:I53) -> 0 | K54: =SUM(K51:K53) -> 0 | M54: =F54+K54 -> 0
B58: Dîner | D58: Coûts réels | F58: Coûts admissibles | I58: Coûts réels | K58: Coûts admissibles | M58: Total coûts admissibles
B60: Coût avant taxes | F60: =IF($D60+$D61<'Calculs repas'!$F$12,$D60,'Calculs repas'!$F$7) -> 0 | K60: =IF($I60+$I61<'Calculs repas'!$F$12,$I60,'Calculs repas'!$F$7) -> 0 | M60: =F60+K60 -> 0 | N60: =$F60+$F61 -> 0 | O60: =$K60+$K61 -> 0
B61: Taxes | D61: =ROUND(D60*TAUX!$C$61,2)+ROUND(D60*TAUX!$C$62,2) -> 0 | F61: =IF($D60+$D61<'Calculs repas'!$F$12,$D61,'Calculs repas'!$F$10) -> 0 | I61: =ROUND(I60*TAUX!$C$61,2)+ROUND(I60*TAUX!$C$62,2) -> 0 | K61: =IF($I60+$I61<'Calculs repas'!$F$12,$I61,'Calculs repas'!$F$10) -> 0 | M61: =F61+K61 -> 0 | N61: =$D62 -> 0 | O61: =$I62 -> 0
B62: Pourboire | F62: =IF($N61<$N62,$N61,$N62) -> 0 | K62: =IF($O61<$O62,$O61,$O62) -> 0 | M62: =F62+K62 -> 0 | N62: =IF('Calculs repas'!$F$12-$N60>0,'Calculs repas'!$F$12-$N60,) -> 20.580525 | O62: =IF('Calculs repas'!$F$12-$O60>0,'Calculs repas'!$F$12-$O60,) -> 20.580525
B63: Total déjeuner | D63: =SUM(D60:D62) -> 0 | F63: =SUM(F60:F62) -> 0 | I63: =SUM(I60:I62) -> 0 | K63: =SUM(K60:K62) -> 0 | M63: =F63+K63 -> 0
B67: Souper | D67: Coûts réels | F67: Coûts admissibles | I67: Coûts réels | K67: Coûts admissibles | M67: Total coûts admissibles
B69: Coût avant taxes | F69: =IF($D69+$D70<'Calculs repas'!$H$12,$D69,'Calculs repas'!$H$7) -> 0 | K69: =IF($I69+$I70<'Calculs repas'!$H$12,$I69,'Calculs repas'!$H$7) -> 0 | M69: =F69+K69 -> 0 | N69: =$F69+$F70 -> 0 | O69: =$K69+$K70 -> 0
B70: Taxes | D70: =D69*ROUNDUP(TAUX!D63,3) -> 0 | F70: =IF($D69+$D70<'Calculs repas'!$H$12,$D70,'Calculs repas'!$H$10) -> 0 | I70: =IF(I69="18,70 $",[2]calculsrepas!$H$10,I69*TAUX!$C$63) -> 0 | K70: =IF($I69+$I70<'Calculs repas'!$H$12,$I70,'Calculs repas'!$H$10) -> 0 | M70: =F70+K70 -> 0 | N70: =$D71 -> 0 | O70: =$I71 -> 0
B71: Pourboire | F71: =IF($N70<$N71,$N70,$N71) -> 0 | K71: =IF($O70<$O71,$O70,$O71) -> 0 | M71: =F71+K71 -> 0 | N71: =IF('Calculs repas'!$H$12-$N69>0,'Calculs repas'!$H$12-$N69,) -> 31.04 | O71: =IF('Calculs repas'!$H$12-$O69>0,'Calculs repas'!$H$12-$O69,) -> 31.04
B72: Total déjeuner | D72: =SUM(D69:D71) -> 0 | F72: =SUM(F69:F71) -> 0 | I72: =SUM(I69:I71) -> 0 | K72: =SUM(K69:K71) -> 0 | M72: =F72+K72 -> 0
K75: Repas (section dépenses taxables remboursables) | M75: =M51+M60+M69 -> 0
K76: Taxes | M76: =M52+M61+M70 -> 0
K77: Pourboires (section dépenses non taxables remboursables) | M77: =M53+M62+M71 -> 0
B78: Commentaires: | K78: Total | M78: =SUM(M75:M77) -> 0

Sheet Garde (hidden)
K4: =Général!L3 -> 0
B8: Remplir les cellules jaunes seulement.
D9: Début | F9: Fin | G9: date en texte et heure en texte | H9: date en texte et heure en texte | I9: Début / Fin | J9: Durée en heures et minutes | K9: Nombre de périodes
B12: Date: | G12: =IF(D12="","",(TEXT(D12,"aaaa-mm-jj"))) ->  | H12: =IF(F12="","",TEXT(F12,"aaaa-mm-jj")) ->  | I12: =G12&" "&G14 -> 
B14: Heure: | G14: =IF(D14="","",TEXT(D14,"hh:mm")) ->  | H14: =IF(G14="","",TEXT(F14,"hh:mm")) ->  | I14: =H12&" "&H14 ->  | J14: =IFERROR(IF(I14-I12>=0,I14-I12,""),"") ->  | K14: =IF(J14<=Divers!$C$7,1,IF(J14<=Divers!$C$8,2,IF(J14<=Divers!$C$9,3,IF(J14<=Divers!$C$10,4,IF(J14<=Divers!$C$11,5,IF(J14<=Divers!$C$12,6,IF(J14<=Divers!$C$13,7,IF(J14<=Divers!$C$14,8)))))))) -> FALSE
B18: Date: | G18: =IF(D18="","",(TEXT(D18,"aaaa-mm-jj"))) ->  | H18: =IF(F18="","",TEXT(F18,"aaaa-mm-jj")) ->  | I18: =G18&" "&G20 -> 
B20: Heure: | G20: =IF(D20="","",TEXT(D20,"hh:mm")) ->  | H20: =IF(G20="","",TEXT(F20,"hh:mm")) ->  | I20: =H18&" "&H20 ->  | J20: =IFERROR(IF(I20-I18>0,I20-I18,""),"") ->  | K20: =IF(J20<=Divers!$C$7,1,IF(J20<=Divers!$C$8,2,IF(J20<=Divers!$C$9,3,IF(J20<=Divers!$C$10,4,IF(J20<=Divers!$C$11,5,IF(J20<=Divers!$C$12,6,IF(J20<=Divers!$C$13,7,IF(J20<=Divers!$C$14,8)))))))) -> FALSE
B24: Date: | G24: =IF(D24="","",(TEXT(D24,"aaaa-mm-jj"))) ->  | H24: =IF(F24="","",TEXT(F24,"aaaa-mm-jj")) ->  | I24: =G24&" "&G26 -> 
B26: Heure: | G26: =IF(D26="","",TEXT(D26,"hh:mm")) ->  | H26: =IF(G26="","",TEXT(F26,"hh:mm")) ->  | I26: =H24&" "&H26 ->  | J26: =IFERROR(IF(I26-I24>0,I26-I24,""),"") ->  | K26: =IF(J26<=Divers!$C$7,1,IF(J26<=Divers!$C$8,2,IF(J26<=Divers!$C$9,3,IF(J26<=Divers!$C$10,4,IF(J26<=Divers!$C$11,5,IF(J26<=Divers!$C$12,6,IF(J26<=Divers!$C$13,7,IF(J26<=Divers!$C$14,8)))))))) -> FALSE
K29: =SUM(K12:K28) -> 0
B30: Format date = aaaa-mm-jj
B31: Format heure = hh:mm
B33: Ce tableau permet d'inscrire 8 périodes de 24 heures de garde maximum. Si le nombre de jours de garde est supérieur à 8, veuillez les inscrire dans les autres cellules.
B36: Commentaires:

Sheet Stationnement (hidden)
E5: =Général!L3 -> 0
B8: Remplir les cellules jaunes seulement, au besoin.
B12: Coût du stationnement | C12: $
B14: Est-ce que le montant payé pour le stationnement comprend les taxes ? | C14: Oui / non / ne sait pas
B16: Coût avant taxes: | D16: =IF(D14="oui",D12/1.14975,D12) -> 0
B17: TPS: | D17: =D16*0.05 -> 0
B18: TVQ: | D18: =D16*0.09975 -> 0
B19: Coût incluant les taxes: | D19: =D16+D17+D18 -> 0
B22: Commentaires:

Sheet Choix (hidden)
D5: =Général!L3 -> 0
B6: =IFERROR(IF('Calculs choix indemnité'!A10<'Calculs choix indemnité'!A12, "La durée du transport est inférieure à 12 heures. Seuls les repas, s'il y a lieu, peuvent être remboursés.", IF(AND('Calculs choix indemnité'!A10>'Calculs choix indemnité'!A12,Général!J79=2), "La durée du transport est supérieure à 12 heures sans coucher. "& 'Calculs choix indemnité'!A34, IF(AND('Calculs choix indemnité'!A10>'Calculs choix indemnité'!A12,Général!J79=1,'Calculs choix indemnité'!A10<'Calculs choix indemnité'!A13), "La durée du transport se situe entre 12 et 18 heures."&'Calculs choix indemnité'!A34, IF(AND('Calculs choix indemnité'!A10>'Calculs choix indemnité'!A12,Général!J79=1,'Calculs choix indemnité'!A10<'Calculs choix indemnité'!A14), "La durée du transport se situe entre 18 et 24 heures. Vous pouvez choisir de recevoir 100 % de l'indemnité journalière ou de demander le remboursement des dépenses réelles.", IF(AND('Calculs choix indemnité'!A10>'Calculs choix indemnité'!A12,Général!J79=1,'Calculs choix indemnité'!A10>'Calculs choix indemnité'!A14), "La durée du transport est supérieure à 24 heures. Vous pouvez choisir de recevoir 100 % de l'indemnité journalière plus les repas pris au-delà de cette période ou de demander le remboursement des dépenses réelles."))))),"") -> 
B8: Pour vous aider dans votre choix:
B10: Calcul de l'indemnité à laquelle vous avez droit: | H10: =Général!J85 -> 0
B11: =IF(B6='Calculs choix indemnité'!G21,'Calculs choix indemnité'!A33, IF(Choix!B6='Calculs choix indemnité'!G22,'Calculs choix indemnité'!A34, IF(Choix!B6='Calculs choix indemnité'!G23,'Calculs choix indemnité'!A34, IF(Choix!B6='Calculs choix indemnité'!G24,'Calculs choix indemnité'!A35, IF(Choix!B6='Calculs choix indemnité'!G25,'Calculs choix indemnité'!A36,))))) -> 0
B12: =IF('Calculs choix indemnité'!A10<='Calculs choix indemnité'!A12,"Le transport a duré moins de 12 heures, vous ne pouvez effectuer un choix.", IF(Général!J79=2,"50 % de l'indemnité soit "&H14&",00 $ par préposé.", IF(AND(Général!J79=1,Général!L79>='Calculs choix indemnité'!A12,Général!L79<'Calculs choix indemnité'!A13),"50 % de l'indemnité soit "&'Calculs choix indemnité'!D16&",00 $ par préposé:", IF(AND(Général!J79=1,Général!L79>='Calculs choix indemnité'!A10,Général!L79<'Calculs choix indemnité'!A14),"100 % de l'indemnité soit "&'Calculs choix indemnité'!E17&",00 $ par préposé:", IF('Calculs choix indemnité'!A10>='Calculs choix indemnité'!A14,"100 % de l'indemnité soit "&'Calculs choix indemnité'!E17&",00 $ par préposé:")) ))) ->  | D12: =IF('Calculs choix indemnité'!A10<='Calculs choix indemnité'!A12,0, IF('Calculs choix indemnité'!A10>='Calculs choix indemnité'!A14,'Calculs choix indemnité'!E17*'Calculs choix indemnité'!F17, IF(AND('Calculs choix indemnité'!A10>='Calculs choix indemnité'!A12,Général!H79="non"),H14*'Calculs choix indemnité'!F17, IF(AND('Calculs choix indemnité'!A10>='Calculs choix indemnité'!A12,'Calculs choix indemnité'!A10<='Calculs choix indemnité'!A13,Général!H79="oui"),'Calculs choix indemnité'!D16*'Calculs choix indemnité'!F17, IF(AND('Calculs choix indemnité'!A10>='Calculs choix indemnité'!A13,'Calculs choix indemnité'!A10<='Calculs choix indemnité'!A14,Général!H79="oui"),'Calculs choix indemnité'!E17*'Calculs choix indemnité'!F17,))))) ->  | H12: =IF(L16="2022",L17,IF(M16="2023",M17,IF(N16="2024",N17,""))) ->  | L12: 2022-07-01 | M12: 2023-07-01 | N12: 2024-07-01
B13: =IF('Calculs choix indemnité'!A10>='Calculs choix indemnité'!A14,"Plus les repas pris au-delà des premiers 24 heures, s'il y a lieu:","") ->  | D13: =IF('Calculs choix indemnité'!A10>='Calculs choix indemnité'!A14, Repas!M75,"") ->  | H13: =IF(H12="oui","haute saison","basse saison") -> basse saison | L13: 2022-11-01 | M13: 2023-11-01 | N13: 2024-11-01
B14: Total: | D14: =SUM(D12:D13) ->  | H14: =INDEX(TAUX!G50:H58,MATCH(H10,TAUX!F50:F58,0),MATCH(H13,TAUX!G49:H49,0)) ->  | L14: 2022-01-01 | M14: 2023-01-01 | N14: 2024-01-01
B15: OU | L15: 2022-12-31 | M15: 2023-12-31 | N15: 2024-12-31
B16: =IF(AND('Calculs choix indemnité'!A10>'Calculs choix indemnité'!A12,Général!H79="non"),"Dépenses relatives aux repas (excluant les pourboires)", "Dépenses relatives aux repas (excluant les pourboires) et à l'hébergement que vous avez déjà inscrites:") ->  | D16: =IF(Général!H79="non", Repas!M42, Repas!M42+Repas!M75+Hébergement!F27) -> 0 | L16: =IF(AND(Général!G14>=L14,Général!G14<=L15),"2022","non") -> non | M16: =IF(AND(Général!G14>=M14,Général!G14<=M15),"2023","non") -> non | N16: =IF(AND(Général!G14>=N14,Général!G14<=N15),"2024","non") -> non
L17: =IF(AND(Général!G14>=Choix!L12,Général!G14<Choix!L13),"oui","non") -> non | M17: =IF(AND(Général!G14>=Choix!M12,Général!G14<M13),"oui","non") -> non | N17: =IF(AND(Général!G14>=Choix!N12,Général!G14<N13),"oui","non") -> non
B18: Faites votre choix ici:
D21: =IF(AND(C17=1,D14=0),"Vous devez choisir Dépenses réelles", IF(C17=1,D14, IF(AND(C17=2,D14=0),D16, IF(C17=2,D16)))) -> 
B23: Commentaires:

Sheet Jours fériés (hidden)
B1: Liste des jours fériés 2025 à 2037 | E1: Calendrier des jours fériés 2025 à 2037
B3: Calendrier 2025 à 2037 | C3: S ou FDS | D3: F | E3: Événement | G3: 2022 | H3: 2023 | I3: 2024 | J3: 2025 | K3: 2026 | L3: 2027 | M3: 2028 | N3: 2029 | O3: 2030 | P3: 2031 | Q3: 2032 | R3: 2033 | S3: 2034 | T3: 2035 | U3: 2036 | V3: 2037 | W3: 2038 | X3: 2039 | Y3: 2040 | Z3: 2041 | AA3: 2042 | AB3: 2043 | AC3: 2044 | AD3: 2045 | AE3: 2046
B4: 2025-01-01 | C4: s | D4: oui | F4: Jour de l'An | G4: samedi 1er janvier 2022 | H4: dimanche 1er janvier 2023 | I4: lundi 1er janvier 2024 | J4: mercredi 1er janvier 2025 | K4: jeudi 1er janvier 2026 | L4: vendredi 1er janvier 2027 | M4: samedi 1er janvier 2028 | N4: lundi 1er janvier 2029 | O4: mardi 1er janvier 2030 | P4: mercredi 1er janvier 2031 | Q4: jeudi 1er janvier 2032 | R4: samedi 1er janvier 2033 | S4: dimanche 1er janvier 2034 | T4: lundi 1er janvier 2035 | U4: mardi 1er janvier 2036 | V4: jeudi 1er janvier 2037 | W4: vendredi 1er janvier 2038 | X4: samedi 1er janvier 2039 | Y4: dimanche 1er janvier 2040 | Z4: mardi 1er janvier 2041 | AA4: mercredi 1er janvier 2042 | AB4: jeudi 1er janvier 2043 | AC4: vendredi 1er janvier 2044 | AD4: dimanche 1er janvier 2045 | AE4: lundi 1er janvier 2046
B5: 2025-01-02 | C5: s | D5: oui | F5: Lendemain du jour de l'An | G5: dimanche 2 janvier 2022 | H5: lundi 2 janvier 2023 | I5: mardi 2 janvier 2024 | J5: jeudi 2 janvier 2025 | K5: vendredi 2 janvier 2026 | L5: samedi 2 janvier 2027 | M5: dimanche 2 janvier 2028 | N5: mardi 2 janvier 2029 | O5: lundi 2 janvier 2030 | P5: jeudi 2 janvier 2031 | Q5: vendredi 2 janvier 2032 | R5: dimanche 2 janvier 2033 | S5: lundi 2 janvier 2034 | T5: mardi 2 janvier 2035 | U5: mercredi 2 janvier 2036 | V5: vendredi 2 janvier 2037 | W5: samedi 2 janvier 2038 | X5: dimanche 2 janvier 2039 | Y5: lundi 2 janvier 2040 | Z5: mercredi 2 janvier 2041 | AA5: jeudi 2 janvier 2042 | AB5: vendredi 2 janvier 2043 | AC5: samedi 2 janvier 2044 | AD5: lundi 2 janvier 2045 | AE5: mardi 2 janvier 2046
B6: 2025-01-03 | C6: s | F6: Vendredi saint | G6: vendredi 15 avril 2022 | H6: vendredi 7 avril 2023 | I6: vendredi 29 mars 2024 | J6: vendredi 18 avril 2025 | K6: vendredi 3 avril 2026 | L6: vendredi 26 mars 2027 | M6: vendredi 14 avril 2028 | N6: vendredi 30 mars 2029 | O6: vendredi 19 avril 2030 | P6: vendredi 11 avril 2031 | Q6: vendredi 26 mars 2032 | R6: vendredi 15 avril 2033 | S6: vendredi 7 avril 2034 | T6: vendredi 23 mars 2035 | U6: vendredi 11 avril 2036 | V6: vendredi 3 avril 2037 | W6: vendredi 23 avril 2038 | X6: vendredi 8 avril 2039 | Y6: vendredi 30 mars 2040 | Z6: vendredi 19 avril 2041 | AA6: vendredi 4 avril 2042 | AB6: vendredi 27 mars 2043 | AC6: vendredi 15 avril 2044 | AD6: vendredi 7 avril 2045 | AE6: vendredi 23 mars 2046
B7: 2025-01-04 | C7: fds | F7: Lundi de Pâques | G7: lundi 18 avril 2022 | H7: lundi 10 avril 2023 | I7: lundi 1er avril 2024 | J7: lundi 21 avril 2025 | K7: lundi 5 avril 2026 | L7: lundi 29 mars 2027 | M7: lundi 17 avril 2028 | N7: lundi 2 avril 2029 | O7: lundi 22 avril 2030 | P7: lundi 14 avril 2031 | Q7: lundi 29 mars 2032 | R7: lundi 18 avril 2033 | S7: lundi 10 avril 2034 | T7: lundi 26 mars 2035 | U7: lundi 14 avril 2036 | V7: lundi 6 avril 2037 | W7: lundi 26 avril 2038 | X7: lundi 11 avril 2039 | Y7: lundi 2 avril 2040 | Z7: lundi 22 avril 2041 | AA7: lundi 7 avril 2042 | AB7: lundi 30 mars 2043 | AC7: lundi 18 avril 2044 | AD7: lundi 10 avril 2045 | AE7: lundi 26 mars 2046
B8: 2025-01-05 | C8: fds | F8: Journée internationale des Patriotes | G8: lundi 23 mai 2022 | H8: lundi 22 mai 2023 | I8: lundi 20 mai 2024 | J8: lundi 19 mai 2025 | K8: lundi 18 mai 2026 | L8: lundi 24 mai 2027 | M8: lundi 22 mai 2028 | N8: lundi 21 mai 2029 | O8: lundi 20 mai 2030 | P8: lundi 19 mai 2031 | Q8: lundi 24 mai 2032 | R8: lundi 23 mai 2033 | S8: lundi 22 mai 2034 | T8: lundi 21 mai 2035 | U8: lundi 19 mai 2036 | V8: lundi 18 mai 2037 | W8: lundi 24 mai 2038 | X8: lundi 23 mai 2039 | Y8: lundi 21 mai 2040 | Z8: lundi 20 mai 2041 | AA8: lundi 19 mai 2042 | AB8: lundi 18 mai 2043 | AC8: lundi 23 mai 2044 | AD8: lundi 22 mai 2045 | AE8: lundi 21 mai 2046
B9: 2025-01-06 | C9: s | F9: Fête nationale du Québec | G9: vendredi 24 juin 2022 | H9: samedi 24 juin 2023 | I9: lundi 24 juin 2024 | J9: mardi 24 juin 2025 | K9: mercredi 24 juin 2026 | L9: jeudi 24 juin 2027 | M9: samedi 24 juin 2028 | N9: dimanche 24 juin 2029 | O9: lundi 24 juin 2030 | P9: mardi 24 juin 2031 | Q9: jeudi 24 juin 2032 | R9: vendredi 24 juin 2033 | S9: samedi 24 juin 2034 | T9: dimanche 24 juin 2035 | U9: mardi 24 juin 2036 | V9: mercredi 24 juin 2037 | W9: jeudi 24 juin 2038 | X9: vendredi 24 juin 2039 | Y9: dimanche 24 juin 2040 | Z9: lundi 24 juin 2041 | AA9: mardi 24 juin 2042 | AB9: mercredi 24 juin 2043 | AC9: vendredi 24 juin 2044 | AD9: samedi 24 juin 2045 | AE9: dimanche 24 juin 2046
B10: 2025-01-07 | C10: s | F10: Fête du Canada | G10: vendredi 1er juillet 2022 | H10: samedi 1er juillet 2023 | I10: lundi 1er juillet 2024 | J10: mardi 1er juillet 2025 | K10: mercredi 1er juillet 2026 | L10: jeudi 1er juillet 2027 | M10: samedi 1er juillet 2028 | N10: dimanche 1er juillet 2029 | O10: lundi 1er juillet 2030 | P10: mardi 1er juillet 2031 | Q10: jeudi 1er juillet 2032 | R10: vendredi 1er juillet 2033 | S10: samedi 1er juillet 2034 | T10: dimanche 1er juillet 2035 | U10: mardi 1er juillet 2036 | V10: mercredi 1er juillet 2037 | W10: jeudi 1er juillet 2038 | X10: vendredi 1er juillet 2039 | Y10: dimanche 1er juillet 2040 | Z10: lundi 1er juillet 2041 | AA10: mardi 1er juillet 2042 | AB10: mercredi 1er juillet 2043 | AC10: vendredi 1er juillet 2044 | AD10: samedi 1er juillet 2045 | AE10: dimanche 1er juillet 2046
B11: 2025-01-08 | C11: s | F11: Fête du Travail | G11: lundi 5 septembre 2022 | H11: lundi 4 septembre 2023 | I11: lundi 2 septembre 2024 | J11: lundi 1er septembre 2025 | K11: lundi 7 septembre 2026 | L11: lundi 6 septembre 2027 | M11: lundi 4 septembre 2028 | N11: lundi 3 septembre 2029 | O11: lundi 2 septembre 2030 | P11: lundi 1er septembre 2031 | Q11: lundi 6 septembre 2032 | R11: lundi 5 septembre 2033 | S11: lundi 4 septembre 2034 | T11: lundi 3 septembre 2035 | U11: lundi 1er septembre 2036 | V11: lundi 7 septembre 2037 | W11: lundi 6 septembre 2038 | X11: lundi 5 septembre 2039 | Y11: lundi 3 septembre 2040 | Z11: lundi 2 septembre 2041 | AA11: lundi 1er septembre 2042 | AB11: lundi 7 septembre 2043 | AC11: lundi 5 septembre 2044 | AD11: lundi 4 septembre 2045 | AE11: lundi 3 septembre 2046
B12: 2025-01-09 | C12: s | F12: Fête de l'Action de grâces | G12: lundi 10 octobre 2022 | H12: lundi 9 octobre 2023 | I12: lundi 14 octobre 2024 | J12: lundi 13 octobre 2025 | K12: lundi 12 octobre 2026 | L12: lundi 11 octobre 2027 | M12: lundi 9 octobre 2028 | N12: lundi 8 octobre 2029 | O12: lundi 14 octobre 2030 | P12: lundi 13 octobre 2031 | Q12: lundi 11 octobre 2032 | R12: lundi 10 octobre 2033 | S12: lundi 9 octobre 2034 | T12: lundi 8 octobre 2035 | U12: lundi 13 octobre 2036 | V12: lundi 12 octobre 2037 | W12: lundi 11 octobre 2038 | X12: lundi 10 octobre 2039 | Y12: lundi 8 octobre 2040 | Z12: lundi 14 octobre 2041 | AA12: lundi 13 octobre 2042 | AB12: lundi 12 octobre 2043 | AC12: lundi 10 octobre 2044 | AD12: lundi 9 octobre 2045 | AE12: lundi 8 octobre 2046
B13: 2025-01-10 | C13: s | F13: Veille de Noël | G13: samedi 24 décembre 2022 | H13: dimanche 24 décembre 2023 | I13: mardi 24 décembre 2024 | J13: mercredi 24 décembre 2025 | K13: jeudi 24 décembre 2026 | L13: vendredi 24 décembre 2027 | M13: dimanche 24 décembre 2028 | N13: lundi 24 décembre 2029 | O13: mardi 24 décembre 2030 | P13: mercredi 24 décembre 2031 | Q13: vendredi 24 décembre 2032 | R13: samedi 24 décembre 2033 | S13: dimanche 24 décembre 2034 | T13: lundi 24 décembre 2035 | U13: mercredi 24 décembre 2036 | V13: jeudi 24 décembre 2037 | W13: vendredi 24 décembre 2038 | X13: samedi 24 décembre 2039 | Y13: lundi 24 décembre 2040 | Z13: mardi 24 décembre 2041 | AA13: mercredi 24 décembre 2042 | AB13: jeudi 24 décembre 2043 | AC13: samedi 24 décembre 2044 | AD13: dimanche 24 décembre 2045 | AE13: lundi 24 décembre 2046
B14: 2025-01-11 | C14: fds | F14: Noël | G14: dimanche 25 décembre 2022 | H14: lundi 25 décembre 2023 | I14: mercredi 25 décembre 2024 | J14: jeudi 25 décembre 2025 | K14: vendredi 25 décembre 2026 | L14: samedi 25 décembre 2027 | M14: lundi 25 décembre 2028 | N14: mardi 25 décembre 2029 | O14: mercredi 25 décembre 2030 | P14: jeudi 25 décembre 2031 | Q14: samedi 25 décembre 2032 | R14: dimanche 25 décembre 2033 | S14: lundi 25 décembre 2034 | T14: mardi 25 décembre 2035 | U14: jeudi 25 décembre 2036 | V14: vendredi 25 décembre 2037 | W14: samedi 25 décembre 2038 | X14: dimanche 25 décembre 2039 | Y14: mardi 25 décembre 2040 | Z14: mercredi 25 décembre 2041 | AA14: jeudi 25 décembre 2042 | AB14: vendredi 25 décembre 2043 | AC14: dimanche 25 décembre 2044 | AD14: lundi 25 décembre 2045 | AE14: mardi 25 décembre 2046
B15: 2025-01-12 | C15: fds | F15: Lendemain de Noël | G15: lundi 26 décembre 2022 | H15: mardi 26 décembre 2023 | I15: jeudi 26 décembre 2024 | J15: vendredi 26 décembre 2025 | K15: samedi 26 décembre 2026 | L15: dimanche 26 décembre 2027 | M15: mardi 26 décembre 2028 | N15: mercredi 26 décembre 2029 | O15: jeudi 26 décembre 2030 | P15: vendredi 26 décembre 2031 | Q15: dimanche 26 décembre 2032 | R15: lundi 26 décembre 2033 | S15: mardi 26 décembre 2034 | T15: mercredi 26 décembre 2035 | U15: vendredi 26 décembre 2036 | V15: samedi 26 décembre 2037 | W15: dimanche 26 décembre 2038 | X15: lundi 26 décembre 2039 | Y15: mercredi 26 décembre 2040 | Z15: jeudi 26 décembre 2041 | AA15: vendredi 26 décembre 2042 | AB15: samedi 26 décembre 2043 | AC15: lundi 26 décembre 2044 | AD15: mardi 26 décembre 2045 | AE15: mercredi 26 décembre 2046
B16: 2025-01-13 | C16: s | F16: Veille du Jour de l'An | G16: samedi 31 décembre 2022 | H16: dimanche 31 décembre 2023 | I16: mardi 31 décembre 2024 | J16: mercredi 31 décembre 2025 | K16: jeudi 31 décembre 2026 | L16: vendredi 31 décembre 2027 | M16: dimanche 31 décembre 2028 | N16: lundi 31 décembre 2029 | O16: mardi 31 décembre 2030 | P16: mercredi 31 décembre 2031 | Q16: vendredi 31 décembre 2032 | R16: samedi 31 décembre 2033 | S16: dimanche 31 décembre 2034 | T16: lundi 31 décembre 2035 | U16: mercredi 31 décembre 2036 | V16: jeudi 31 décembre 2037 | W16: vendredi 31 décembre 2038 | X16: samedi 31 décembre 2039 | Y16: lundi 31 décembre 2040 | Z16: mardi 31 décembre 2041 | AA16: mercredi 31 décembre 2042 | AB16: jeudi 31 décembre 2043 | AC16: samedi 31 décembre 2044 | AD16: dimanche 31 décembre 2045 | AE16: lundi 31 décembre 2046
B17: 2025-01-14 | C17: s
B18: 2025-01-15 | C18: s
B19: 2025-01-16 | C19: s
B20: 2025-01-17 | C20: s | E20: LE CALENDRIER DOIT:
B21: 2025-01-18 | C21: fds | E21: - ÊTRE TRANSFÉRÉ SUR UNE SEULE PAGE ET DÉPOSÉ DANS LA SECTION PARTENAIRE DU SITE DU BC
B22: 2025-01-19 | C22: fds | E22: - ÊTRE INTÉGRÉ DANS LE DOCUMENT DE FORMATION À TITRE DE RÉFÉRENCE
B23: 2025-01-20 | C23: s
B24: 2025-01-21 | C24: s
B25: 2025-01-22 | C25: s | E25: LA LISTE DES JOURS FÉRIÉS:
B26: 2025-01-23 | C26: s | E26: - EST S'ÉTEND DE 2025 à 2037
B27: 2025-01-24 | C27: s | E27: - ELLE SERT DANS LE CALCUL DU TEMPS D'ATTENTE. NE PAS EFFACER.
B28: 2025-01-25 | C28: fds
B29: 2025-01-26 | C29: fds
B30: 2025-01-27 | C30: s | E30: 1er trsp | F30: 2e trsp | G30: 3e trsp | H30: 4e trsp
B31: 2025-01-28 | C31: s | E31: =IF(VLOOKUP(Général!$G14,$B$4:$D$1464,2,FALSE)="s","jour de semaine","jour de fin de semaine") ->  | F31: =IF(VLOOKUP(#REF!,$B4:$D$1464,2,FALSE)="s","Jour de semaine","Jour de fin de semaine") ->  | G31: =IF(VLOOKUP(#REF!,$B4:$D$1464,2,FALSE)="s","Jour de semaine","Jour de fin de semaine") ->  | H31: =IF(VLOOKUP(#REF!,$B4:$D$1464,2,FALSE)="s","Jour de semaine","Jour de fin de semaine") -> 
B32: 2025-01-29 | C32: s | E32: =IF(VLOOKUP(Général!$G14,$B$4:$D$1464,3,FALSE)="oui","férié","non férié") ->  | F32: =IF(VLOOKUP(#REF!,$B4:$D$1464,3,FALSE)="oui","férié","non férié") ->  | G32: =IF(VLOOKUP(#REF!,$B4:$D$1464,3,FALSE)="oui","férié","non férié") ->  | H32: =IF(VLOOKUP(#REF!,$B4:$D$1464,3,FALSE)="oui","férié","non férié") -> 
B33: 2025-01-30 | C33: s
B34: 2025-01-31 | C34: s | E34: =IF(VLOOKUP(Général!$L14,$B$4:$D$1464,2,FALSE)="s","jour de semaine","jour de fin de semaine") ->  | F34: =IF(VLOOKUP(#REF!,$B4:$D$1464,2,FALSE)="s","Jour de semaine","Jour de fin de semaine") ->  | G34: =IF(VLOOKUP(#REF!,$B4:$D$1464,2,FALSE)="s","Jour de semaine","Jour de fin de semaine") ->  | H34: =IF(VLOOKUP(#REF!,$B4:$D$1464,2,FALSE)="s","Jour de semaine","Jour de fin de semaine") -> 
B35: 2025-02-01 | C35: fds | E35: =IF(VLOOKUP(Général!$L14,$B$4:$D$1464,3,FALSE)="oui","férié","non férié") ->  | F35: =IF(VLOOKUP(#REF!,$B4:$D$1464,3,FALSE)="oui","férié","non férié") ->  | G35: =IF(VLOOKUP(#REF!,$B4:$D$1464,3,FALSE)="oui","férié","non férié") ->  | H35: =IF(VLOOKUP(#REF!,$B4:$D$1464,3,FALSE)="oui","férié","non férié") -> 
B36: 2025-02-02 | C36: fds
B37: 2025-02-03 | C37: s
B38: 2025-02-04 | C38: s
B39: 2025-02-05 | C39: s
B40: 2025-02-06 | C40: s
B41: 2025-02-07 | C41: s
B42: 2025-02-08 | C42: fds
B43: 2025-02-09 | C43: fds
B44: 2025-02-10 | C44: s
B45: 2025-02-11 | C45: s
B46: 2025-02-12 | C46: s | J46: =IF(J18<>J32,"","NON") -> NON
B47: 2025-02-13 | C47: s | J47: NON
B48: 2025-02-14 | C48: s | J48: NON
B49: 2025-02-15 | C49: fds
B50: 2025-02-16 | C50: fds
B51: 2025-02-17 | C51: s
B52: 2025-02-18 | C52: s
B53: 2025-02-19 | C53: s
B54: 2025-02-20 | C54: s
B55: 2025-02-21 | C55: s
B56: 2025-02-22 | C56: fds
B57: 2025-02-23 | C57: fds
B58: 2025-02-24 | C58: s
B59: 2025-02-25 | C59: s
B60: 2025-02-26 | C60: s
B61: 2025-02-27 | C61: s
B62: 2025-02-28 | C62: s
B63: 2025-03-01 | C63: fds
B64: 2025-03-02 | C64: fds
B65: 2025-03-03 | C65: s
B66: 2025-03-04 | C66: s
B67: 2025-03-05 | C67: s
B68: 2025-03-06 | C68: s
B69: 2025-03-07 | C69: s
B70: 2025-03-08 | C70: fds
B71: 2025-03-09 | C71: fds
B72: 2025-03-10 | C72: s
B73: 2025-03-11 | C73: s
B74: 2025-03-12 | C74: s
B75: 2025-03-13 | C75: s
B76: 2025-03-14 | C76: s
B77: 2025-03-15 | C77: fds
B78: 2025-03-16 | C78: fds
B79: 2025-03-17 | C79: s
B80: 2025-03-18 | C80: s
B81: 2025-03-19 | C81: s
B82: 2025-03-20 | C82: s
B83: 2025-03-21 | C83: s
B84: 2025-03-22 | C84: fds
B85: 2025-03-23 | C85: fds
B86: 2025-03-24 | C86: s
B87: 2025-03-25 | C87: s
B88: 2025-03-26 | C88: s
B89: 2025-03-27 | C89: s
B90: 2025-03-28 | C90: s
B91: 2025-03-29 | C91: fds
B92: 2025-03-30 | C92: fds
B93: 2025-03-31 | C93: s
B94: 2025-04-01 | C94: s
B95: 2025-04-02 | C95: s
B96: 2025-04-03 | C96: s
B97: 2025-04-04 | C97: s
B98: 2025-04-05 | C98: fds
B99: 2025-04-06 | C99: fds
B100: 2025-04-07 | C100: s
B101: 2025-04-08 | C101: s
B102: 2025-04-09 | C102: s
B103: 2025-04-10 | C103: s
B104: 2025-04-11 | C104: s
B105: 2025-04-12 | C105: fds
B106: 2025-04-13 | C106: fds
B107: 2025-04-14 | C107: s
B108: 2025-04-15 | C108: s
B109: 2025-04-16 | C109: s
B110: 2025-04-17 | C110: s
B111: 2025-04-18 | C111: s | D111: oui
B112: 2025-04-19 | C112: fds
B113: 2025-04-20 | C113: fds
B114: 2025-04-21 | C114: s | D114: oui
B115: 2025-04-22 | C115: s
B116: 2025-04-23 | C116: s
B117: 2025-04-24 | C117: s
B118: 2025-04-25 | C118: s
B119: 2025-04-26 | C119: fds
B120: 2025-04-27 | C120: fds
B121: 2025-04-28 | C121: s
B122: 2025-04-29 | C122: s
B123: 2025-04-30 | C123: s
B124: 2025-05-01 | C124: s
B125: 2025-05-02 | C125: s
B126: 2025-05-03 | C126: fds
B127: 2025-05-04 | C127: fds
B128: 2025-05-05 | C128: s
B129: 2025-05-06 | C129: s
B130: 2025-05-07 | C130: s
B131: 2025-05-08 | C131: s
B132: 2025-05-09 | C132: s
B133: 2025-05-10 | C133: fds
B134: 2025-05-11 | C134: fds
B135: 2025-05-12 | C135: s
B136: 2025-05-13 | C136: s
B137: 2025-05-14 | C137: s
B138: 2025-05-15 | C138: s
B139: 2025-05-16 | C139: s
B140: 2025-05-17 | C140: fds
B141: 2025-05-18 | C141: fds
B142: 2025-05-19 | C142: s | D142: oui
B143: 2025-05-20 | C143: s
B144: 2025-05-21 | C144: s
B145: 2025-05-22 | C145: s
B146: 2025-05-23 | C146: s
B147: 2025-05-24 | C147: fds
B148: 2025-05-25 | C148: fds
B149: 2025-05-26 | C149: s
B150: 2025-05-27 | C150: s
B151: 2025-05-28 | C151: s
B152: 2025-05-29 | C152: s
B153: 2025-05-30 | C153: s
B154: 2025-05-31 | C154: fds
B155: 2025-06-01 | C155: fds
B156: 2025-06-02 | C156: s
B157: 2025-06-03 | C157: s
B158: 2025-06-04 | C158: s
B159: 2025-06-05 | C159: s
B160: 2025-06-06 | C160: s
B161: 2025-06-07 | C161: fds
B162: 2025-06-08 | C162: fds
B163: 2025-06-09 | C163: s
B164: 2025-06-10 | C164: s
B165: 2025-06-11 | C165: s
B166: 2025-06-12 | C166: s
B167: 2025-06-13 | C167: s
B168: 2025-06-14 | C168: fds
B169: 2025-06-15 | C169: fds
B170: 2025-06-16 | C170: s
B171: 2025-06-17 | C171: s
B172: 2025-06-18 | C172: s
B173: 2025-06-19 | C173: s
B174: 2025-06-20 | C174: s
B175: 2025-06-21 | C175: fds
B176: 2025-06-22 | C176: fds
B177: 2025-06-23 | C177: s
B178: 2025-06-24 | C178: s | D178: oui
B179: 2025-06-25 | C179: s
B180: 2025-06-26 | C180: s
B181: 2025-06-27 | C181: s
B182: 2025-06-28 | C182: fds
B183: 2025-06-29 | C183: fds
B184: 2025-06-30 | C184: s
B185: 2025-07-01 | C185: s | D185: oui
B186: 2025-07-02 | C186: s
B187: 2025-07-03 | C187: s
B188: 2025-07-04 | C188: s
B189: 2025-07-05 | C189: fds
B190: 2025-07-06 | C190: fds
B191: 2025-07-07 | C191: s
B192: 2025-07-08 | C192: s
B193: 2025-07-09 | C193: s
B194: 2025-07-10 | C194: s
B195: 2025-07-11 | C195: s
B196: 2025-07-12 | C196: fds
B197: 2025-07-13 | C197: fds
B198: 2025-07-14 | C198: s
B199: 2025-07-15 | C199: s
B200: 2025-07-16 | C200: s
B201: 2025-07-17 | C201: s
... 4550 more rows

Sheet TAUX (hidden)
B2: champs à modifier avec les nouveaux tarifs | C2: 2026
B4: Attente
B6: Semaine - jour/soir | C6: 29.25
B7: Semaine - nuit | C7: 36.25
B8: Fin semaine - jour/soir | C8: 32.5
B9: Fin semaine - nuit | C9: 39.25
B10: Fériés - jour/soir | C10: 40.75
B11: Fériés - nuit | C11: 49
B13: Base ailleurs qu'à Québec et Montréal
B15: Semaine - jour/soir | C15: 184
B16: Semaine - nuit | C16: 220
B17: Fin semaine - jour/soir | C17: 198
B18: Fin semaine - nuit | C18: 242
B19: Fériés - jour/soir | C19: 244
B20: Fériés - nuit | C20: 288
B22: Base Montréal et Québec
B24: Semaine - jour/soir | C24: 184
B25: Semaine - nuit | C25: 220
B26: Fin semaine - jour/soir | C26: 198
B27: Fin semaine - nuit | C27: 242
B28: Fériés - jour/soir | C28: 244
B29: Fériés - nuit | C29: 288
B31: Kilométrage
B32: Chemin public | C32: 1.8
B33: Chemin non public | C33: 3.3
B35: Divers frais
B36: Frais de garde | C36: 67
B37: Frais de visite | C37: 67
B38: Nettoyage supplémentaire | C38: 45.75
B39: Corps additionnel | C39: 125
B41: Repas | C41: Maximum | D41: incluant le pourboire | F41: Maximum sans les taxes
B42: Déjeuner | C42: 14.95 | F42: 13
B43: Dîner | C43: 20.6 | F43: 17.9
B44: Souper | C44: 31.1 | F44: 27
G46: Indemnité journalière
C47: Tarifs = indemnités journalières | G47: 0.5
B48: Nuitées | C48: Basse | D48: Haute | G48: Basse | H48: Haute
C49: basse saison | D49: haute saison | G49: basse saison | H49: haute saison
B50: Montréal | C50: 219 | D50: 235 | F50: Montréal | G50: =ROUND(C50/2,2) -> 109.5 | H50: =ROUND(D50/2,2) -> 117.5
B51: Québec | C51: 193 | D51: 193 | F51: Québec | G51: 96.5 | H51: 96.5
B52: Laval | C52: 188 | D52: 198 | F52: Laval | G52: 94 | H52: 99
B53: Gatineau | C53: 188 | D53: 198 | F53: Gatineau | G53: 94 | H53: 99
B54: Longueuil | C54: 188 | D54: 198 | F54: Longueuil | G54: 94 | H54: 99
B55: Lac-Beauport | C55: 188 | D55: 198 | F55: Lac-Beauport | G55: 94 | H55: 99
B56: Lac-Delage | C56: 188 | D56: 198 | F56: Lac-Delage | G56: 94 | H56: 99
B57: Rimouski | C57: 164 | D57: 169 | F57: Rimouski | G57: 82 | H57: 84.5
B58: Ailleurs | C58: 164 | D58: 169 | F58: Ailleurs | G58: 82 | H58: 84.5
C59: Tarifs excluant la taxe sur l'hébergement
B61: TPS | C61: =ROUND(D61,5) -> 0.05 | D61: 0.05
B62: TVQ | C62: =ROUND(D62,5) -> 0.09975 | D62: 0.09975
B63: total à titre indicatif seulement | C63: =SUM(C61:C62) -> 0.14975 | D63: =D61+D62 -> 0.14975
B66: Lieux de transport
C67: Installations du transporteur
C68: Morgue Montréal
C69: Morgue Québec
C70: Hôpital
C71: Résidence privée
C72: CHSLD / centre jeunesse
C73: Prison / pénitencier
C74: Autre
B78: Liste pour stationnement
C79: oui
C80: non
C81: ne sait pas

Sheet Calculs repas (hidden)
E2: REPAS
D5: Déjeuner | F5: Dîner | H5: Souper
D7: =TAUX!F42 -> 13 | F7: =TAUX!F43 -> 17.9 | H7: =TAUX!F44 -> 27
B8: TPS | C8: =ROUND(D7*TAUX!$C$61,2) -> 0.65 | E8: =F7*TAUX!$C$61 -> 0.895 | G8: =ROUND(H7*TAUX!$C$61,3) -> 1.35
B9: TVQ | C9: =ROUND(D7*TAUX!$C$62,2) -> 1.3 | E9: =F7*TAUX!$C$62 -> 1.785525 | G9: =ROUND(H7*TAUX!$C$62,2) -> 2.69
B10: total taxes | D10: =ROUND(C8+C9,10) -> 1.95 | F10: =E8+E9 -> 2.680525 | H10: =ROUNDUP(G8+G9,2) -> 4.04
B11: pourboire
B12: maximum admissible | D12: =SUM(D7:D11) -> 14.95 | F12: =SUM(F7:F11) -> 20.580525 | H12: =ROUND(SUM(H7:H11),2) -> 31.04
D15: J'AI JOUÉ AVEC LES ARRONDIS POUR QUE LES TOUS LES MONTANTS S'ADDITIONNENT BIEN
B20: ATTENTION:
A22: NE RIEN MODIFIER DANS CE TABLEAU.
A23: TOUS LES CALCULS SONT AUTOMATIQUES EN FONCTION DES DONNÉES INSCRITES DANS L'ONGLET TAUX.
A24: SI CHANGEMENT DE MONTANT ADMISSIBLE OU DES TAUX DE TPS OU DE TVQ, FAIRE LES MODIFICATIONS DANS ONGLET TAUX
